{"text_format":"1","workbook":"xlsx","n_sheets":1,"sheets":["تسجيل الحضور  (2)"],"not_rendered":{"charts":0,"images":0,"macros":1,"external_links":1,"defined_names":5,"comments":0,"pivot_tables":0},"unopened":[],"bounds":{"document_bytes":16777216,"sheet_cells":100000,"rows_first":2000,"rows_last":500,"rows_between":2000,"halvings":0,"cell_chars":16384,"cell_head_chars":4096},"cells_cut":0,"cells_raw":0,"read":"whole","date_system":"1900"}

{"sheet":"تسجيل الحضور  (2)","index":0,"n_rows":259,"n_cols":42,"rows_kept":259,"cut":false,"hidden":false,"merged":[[3,0,5,0],[3,1,5,1],[3,2,5,2],[3,3,5,3],[3,4,5,4],[4,5,5,5],[4,6,5,6],[4,7,5,7],[4,8,5,8],[4,9,5,9],[4,10,5,10],[4,11,5,11],[4,12,5,12],[4,13,5,13],[4,14,5,14],[4,15,5,15],[4,16,5,16],[4,17,5,17],[4,18,5,18],[4,19,5,19],[4,20,5,20],[4,21,5,21],[4,22,5,22],[4,23,5,23],[4,35,5,35],[4,24,5,24],[4,25,5,25],[4,26,5,26],[4,27,5,27],[4,28,5,28],[4,29,5,29],[4,36,5,36],[4,37,5,37],[4,38,4,39],[4,40,5,40],[87,41,87,42],[4,30,5,30],[4,31,5,31],[4,32,5,32],[4,33,5,33],[4,34,5,34]]}
[]
[]
[]
["ر.ت","الرقم الوظيفي","اسم الموظف","الإدارة/ القسم","اسم المصرف",1,2,3,4,5,6,7,8,9,10,11,12,13,14,15,16,17,18,19,20,21,22,23,24,25,26,27,28,29,30,31]
[null,null,null,null,null,"الاثنين","الثلاثاء","الأربعاء","الخميس","الجمعة","السبت","الأحد","الإثنين","الثلاثاء","الأربعاء","الخميس","الجمعة","السبت","الأحد","الإثنين","الثلاثاء","الأربعاء","الخميس","الجمعة","السبت","الأحد","الإثنين","الثلاثاء","الأربعاء","الخميس","الجمعة","السبت","الأحد","الإثنين","الثلاثاء","الأربعاء","الحضور","الغياب","الإجازات",null,"الأيام المستحق عليها مرتب",9]
[null,null,null,null,null,null,null,null,null,null,null,null,null,null,null,null,null,null,null,null,null,null,null,null,null,null,null,null,null,null,null,null,null,null,null,null,null,null,"راحة طبية","إجازة سنوية"]
[null,null,null,null,null,null,null,null,null,null,null,null,null,null,null,null,null,null,null,null,null,null,null,null,null,null,null,null,null,null,null,null,null,null,null,null,{"$f":"COUNTIF(F7:AJ7,\"حضور\")","v":0},{"$f":"COUNTIF(F7:AJ7,\"غياب\")","v":0},{"$f":"COUNTIF(F7:AJ7,\"راحة\")","v":0},{"$f":"COUNTIF(F7:AJ7,\"إجازة\")","v":0},{"$f":"31-AL7","v":31}]
[null,null,null,null,null,null,null,null,null,null,null,null,null,null,null,null,null,null,null,null,null,null,null,null,null,null,null,null,null,null,null,null,null,null,null,null,{"$f":"COUNTIF(F8:AJ8,\"حضور\")","v":0},{"$f":"COUNTIF(F8:AJ8,\"غياب\")","v":0},{"$f":"COUNTIF(F8:AJ8,\"راحة\")","v":0},{"$f":"COUNTIF(F8:AJ8,\"إجازة\")","v":0},{"$f":"31-AL8","v":31}]
[null,null,null,null,null,null,null,null,null,null,null,null,null,null,null,null,null,null,null,null,null,null,null,null,null,null,null,null,null,null,null,null,null,null,null,null,{"$f":"COUNTIF(F9:AJ9,\"حضور\")","v":0},{"$f":"COUNTIF(F9:AJ9,\"غياب\")","v":0},{"$f":"COUNTIF(F9:AJ9,\"راحة\")","v":0},{"$f":"COUNTIF(F9:AJ9,\"إجازة\")","v":0},{"$f":"31-AL9","v":31}]
[null,null,null,null,null,null,null,null,null,null,null,null,null,null,null,null,null,null,null,null,null,null,null,null,null,null,null,null,null,null,null,null,null,null,null,null,{"$f":"COUNTIF(F10:AJ10,\"حضور\")","v":0},{"$f":"COUNTIF(F10:AJ10,\"غياب\")","v":0},{"$f":"COUNTIF(F10:AJ10,\"راحة\")","v":0},{"$f":"COUNTIF(F10:AJ10,\"إجازة\")","v":0},{"$f":"31-AL10","v":31}]
[null,null,null,null,null,null,null,null,null,null,null,null,null,null,null,null,null,null,null,null,null,null,null,null,null,null,null,null,null,null,null,null,null,null,null,null,{"$f":"COUNTIF(F11:AJ11,\"حضور\")","v":0},{"$f":"COUNTIF(F11:AJ11,\"غياب\")","v":0},{"$f":"COUNTIF(F11:AJ11,\"راحة\")","v":0},{"$f":"COUNTIF(F11:AJ11,\"إجازة\")","v":0},{"$f":"31-AL11","v":31}]
[null,null,null,null,null,null,null,null,null,null,null,null,null,null,null,null,null,null,null,null,null,null,null,null,null,null,null,null,null,null,null,null,null,null,null,null,{"$f":"COUNTIF(F12:AJ12,\"حضور\")","v":0},{"$f":"COUNTIF(F12:AJ12,\"غياب\")","v":0},{"$f":"COUNTIF(F12:AJ12,\"راحة\")","v":0},{"$f":"COUNTIF(F12:AJ12,\"إجازة\")","v":0},{"$f":"31-AL12","v":31}]
[null,null,null,null,null,null,null,null,null,null,null,null,null,null,null,null,null,null,null,null,null,null,null,null,null,null,null,null,null,null,null,null,null,null,null,null,{"$f":"COUNTIF(F13:AJ13,\"حضور\")","v":0},{"$f":"COUNTIF(F13:AJ13,\"غياب\")","v":0},{"$f":"COUNTIF(F13:AJ13,\"راحة\")","v":0},{"$f":"COUNTIF(F13:AJ13,\"إجازة\")","v":0},{"$f":"31-AL13","v":31}]
[null,null,null,null,null,null,null,null,null,null,null,null,null,null,null,null,null,null,null,null,null,null,null,null,null,null,null,null,null,null,null,null,null,null,null,null,{"$f":"COUNTIF(F14:AJ14,\"حضور\")","v":0},{"$f":"COUNTIF(F14:AJ14,\"غياب\")","v":0},{"$f":"COUNTIF(F14:AJ14,\"راحة\")","v":0},{"$f":"COUNTIF(F14:AJ14,\"إجازة\")","v":0},{"$f":"31-AL14","v":31}]
[null,null,null,null,null,null,null,null,null,null,null,null,null,null,null,null,null,null,null,null,null,null,null,null,null,null,null,null,null,null,null,null,null,null,null,null,{"$f":"COUNTIF(F15:AJ15,\"حضور\")","v":0},{"$f":"COUNTIF(F15:AJ15,\"غياب\")","v":0},{"$f":"COUNTIF(F15:AJ15,\"راحة\")","v":0},{"$f":"COUNTIF(F15:AJ15,\"إجازة\")","v":0},{"$f":"31-AL15","v":31}]
[null,null,null,null,null,null,null,null,null,null,null,null,null,null,null,null,null,null,null,null,null,null,null,null,null,null,null,null,null,null,null,null,null,null,null,null,{"$f":"COUNTIF(F16:AJ16,\"حضور\")","v":0},{"$f":"COUNTIF(F16:AJ16,\"غياب\")","v":0},{"$f":"COUNTIF(F16:AJ16,\"راحة\")","v":0},{"$f":"COUNTIF(F16:AJ16,\"إجازة\")","v":0},{"$f":"31-AL16","v":31}]
[null,null,null,null,null,null,null,null,null,null,null,null,null,null,null,null,null,null,null,null,null,null,null,null,null,null,null,null,null,null,null,null,null,null,null,null,{"$f":"COUNTIF(F17:AJ17,\"حضور\")","v":0},{"$f":"COUNTIF(F17:AJ17,\"غياب\")","v":0},{"$f":"COUNTIF(F17:AJ17,\"راحة\")","v":0},{"$f":"COUNTIF(F17:AJ17,\"إجازة\")","v":0},{"$f":"31-AL17","v":31}]
[null,null,null,null,null,null,null,null,null,null,null,null,null,null,null,null,null,null,null,null,null,null,null,null,null,null,null,null,null,null,null,null,null,null,null,null,{"$f":"COUNTIF(F18:AJ18,\"حضور\")","v":0},{"$f":"COUNTIF(F18:AJ18,\"غياب\")","v":0},{"$f":"COUNTIF(F18:AJ18,\"راحة\")","v":0},{"$f":"COUNTIF(F18:AJ18,\"إجازة\")","v":0},{"$f":"31-AL18","v":31}]
[null,null,null,null,null,null,null,null,null,null,null,null,null,null,null,null,null,null,null,null,null,null,null,null,null,null,null,null,null,null,null,null,null,null,null,null,{"$f":"COUNTIF(F19:AJ19,\"حضور\")","v":0},{"$f":"COUNTIF(F19:AJ19,\"غياب\")","v":0},{"$f":"COUNTIF(F19:AJ19,\"راحة\")","v":0},{"$f":"COUNTIF(F19:AJ19,\"إجازة\")","v":0},{"$f":"31-AL19","v":31}]
[null,null,null,null,null,null,null,null,null,null,null,null,null,null,null,null,null,null,null,null,null,null,null,null,null,null,null,null,null,null,null,null,null,null,null,null,{"$f":"COUNTIF(F20:AJ20,\"حضور\")","v":0},{"$f":"COUNTIF(F20:AJ20,\"غياب\")","v":0},{"$f":"COUNTIF(F20:AJ20,\"راحة\")","v":0},{"$f":"COUNTIF(F20:AJ20,\"إجازة\")","v":0},{"$f":"31-AL20","v":31}]
[null,null,null,null,null,null,null,null,null,null,null,null,null,null,null,null,null,null,null,null,null,null,null,null,null,null,null,null,null,null,null,null,null,null,null,null,{"$f":"COUNTIF(F21:AJ21,\"حضور\")","v":0},{"$f":"COUNTIF(F21:AJ21,\"غياب\")","v":0},{"$f":"COUNTIF(F21:AJ21,\"راحة\")","v":0},{"$f":"COUNTIF(F21:AJ21,\"إجازة\")","v":0},{"$f":"31-AL21","v":31}]
[null,null,null,null,null,null,null,null,null,null,null,null,null,null,null,null,null,null,null,null,null,null,null,null,null,null,null,null,null,null,null,null,null,null,null,null,{"$f":"COUNTIF(F22:AJ22,\"حضور\")","v":0},{"$f":"COUNTIF(F22:AJ22,\"غياب\")","v":0},{"$f":"COUNTIF(F22:AJ22,\"راحة\")","v":0},{"$f":"COUNTIF(F22:AJ22,\"إجازة\")","v":0},{"$f":"31-AL22","v":31}]
[null,null,null,null,null,null,null,null,null,null,null,null,null,null,null,null,null,null,null,null,null,null,null,null,null,null,null,null,null,null,null,null,null,null,null,null,{"$f":"COUNTIF(F23:AJ23,\"حضور\")","v":0},{"$f":"COUNTIF(F23:AJ23,\"غياب\")","v":0},{"$f":"COUNTIF(F23:AJ23,\"راحة\")","v":0},{"$f":"COUNTIF(F23:AJ23,\"إجازة\")","v":0},{"$f":"31-AL23","v":31}]
[null,null,null,null,null,null,null,null,null,null,null,null,null,null,null,null,null,null,null,null,null,null,null,null,null,null,null,null,null,null,null,null,null,null,null,null,{"$f":"COUNTIF(F24:AJ24,\"حضور\")","v":0},{"$f":"COUNTIF(F24:AJ24,\"غياب\")","v":0},{"$f":"COUNTIF(F24:AJ24,\"راحة\")","v":0},{"$f":"COUNTIF(F24:AJ24,\"إجازة\")","v":0},{"$f":"31-AL24","v":31}]
[null,null,null,null,null,null,null,null,null,null,null,null,null,null,null,null,null,null,null,null,null,null,null,null,null,null,null,null,null,null,null,null,null,null,null,null,{"$f":"COUNTIF(F25:AJ25,\"حضور\")","v":0},{"$f":"COUNTIF(F25:AJ25,\"غياب\")","v":0},{"$f":"COUNTIF(F25:AJ25,\"راحة\")","v":0},{"$f":"COUNTIF(F25:AJ25,\"إجازة\")","v":0},{"$f":"31-AL25","v":31}]
[null,null,null,null,null,null,null,null,null,null,null,null,null,null,null,null,null,null,null,null,null,null,null,null,null,null,null,null,null,null,null,null,null,null,null,null,{"$f":"COUNTIF(F26:AJ26,\"حضور\")","v":0},{"$f":"COUNTIF(F26:AJ26,\"غياب\")","v":0},{"$f":"COUNTIF(F26:AJ26,\"راحة\")","v":0},{"$f":"COUNTIF(F26:AJ26,\"إجازة\")","v":0},{"$f":"31-AL26","v":31}]
[null,null,null,null,null,null,null,null,null,null,null,null,null,null,null,null,null,null,null,null,null,null,null,null,null,null,null,null,null,null,null,null,null,null,null,null,{"$f":"COUNTIF(F27:AJ27,\"حضور\")","v":0},{"$f":"COUNTIF(F27:AJ27,\"غياب\")","v":0},{"$f":"COUNTIF(F27:AJ27,\"راحة\")","v":0},{"$f":"COUNTIF(F27:AJ27,\"إجازة\")","v":0},{"$f":"31-AL27","v":31}]
[null,null,null,null,null,null,null,null,null,null,null,null,null,null,null,null,null,null,null,null,null,null,null,null,null,null,null,null,null,null,null,null,null,null,null,null,{"$f":"COUNTIF(F28:AJ28,\"حضور\")","v":0},{"$f":"COUNTIF(F28:AJ28,\"غياب\")","v":0},{"$f":"COUNTIF(F28:AJ28,\"راحة\")","v":0},{"$f":"COUNTIF(F28:AJ28,\"إجازة\")","v":0},{"$f":"31-AL28","v":31}]
[null,null,null,null,null,null,null,null,null,null,null,null,null,null,null,null,null,null,null,null,null,null,null,null,null,null,null,null,null,null,null,null,null,null,null,null,{"$f":"COUNTIF(F29:AJ29,\"حضور\")","v":0},{"$f":"COUNTIF(F29:AJ29,\"غياب\")","v":0},{"$f":"COUNTIF(F29:AJ29,\"راحة\")","v":0},{"$f":"COUNTIF(F29:AJ29,\"إجازة\")","v":0},{"$f":"31-AL29","v":31}]
[null,null,null,null,null,null,null,null,null,null,null,null,null,null,null,null,null,null,null,null,null,null,null,null,null,null,null,null,null,null,null,null,null,null,null,null,{"$f":"COUNTIF(F30:AJ30,\"حضور\")","v":0},{"$f":"COUNTIF(F30:AJ30,\"غياب\")","v":0},{"$f":"COUNTIF(F30:AJ30,\"راحة\")","v":0},{"$f":"COUNTIF(F30:AJ30,\"إجازة\")","v":0},{"$f":"31-AL30","v":31}]
[null,null,null,null,null,null,null,null,null,null,null,null,null,null,null,null,null,null,null,null,null,null,null,null,null,null,null,null,null,null,null,null,null,null,null,null,{"$f":"COUNTIF(F31:AJ31,\"حضور\")","v":0},{"$f":"COUNTIF(F31:AJ31,\"غياب\")","v":0},{"$f":"COUNTIF(F31:AJ31,\"راحة\")","v":0},{"$f":"COUNTIF(F31:AJ31,\"إجازة\")","v":0},{"$f":"31-AL31","v":31}]
[null,null,null,null,null,null,null,null,null,null,null,null,null,null,null,null,null,null,null,null,null,null,null,null,null,null,null,null,null,null,null,null,null,null,null,null,{"$f":"COUNTIF(F32:AJ32,\"حضور\")","v":0},{"$f":"COUNTIF(F32:AJ32,\"غياب\")","v":0},{"$f":"COUNTIF(F32:AJ32,\"راحة\")","v":0},{"$f":"COUNTIF(F32:AJ32,\"إجازة\")","v":0},{"$f":"31-AL32","v":31}]
[null,null,null,null,null,null,null,null,null,null,null,null,null,null,null,null,null,null,null,null,null,null,null,null,null,null,null,null,null,null,null,null,null,null,null,null,{"$f":"COUNTIF(F33:AJ33,\"حضور\")","v":0},{"$f":"COUNTIF(F33:AJ33,\"غياب\")","v":0},{"$f":"COUNTIF(F33:AJ33,\"راحة\")","v":0},{"$f":"COUNTIF(F33:AJ33,\"إجازة\")","v":0},{"$f":"31-AL33","v":31}]
[null,null,null,null,null,null,null,null,null,null,null,null,null,null,null,null,null,null,null,null,null,null,null,null,null,null,null,null,null,null,null,null,null,null,null,null,{"$f":"COUNTIF(F34:AJ34,\"حضور\")","v":0},{"$f":"COUNTIF(F34:AJ34,\"غياب\")","v":0},{"$f":"COUNTIF(F34:AJ34,\"راحة\")","v":0},{"$f":"COUNTIF(F34:AJ34,\"إجازة\")","v":0},{"$f":"31-AL34","v":31}]
[null,null,null,null,null,null,null,null,null,null,null,null,null,null,null,null,null,null,null,null,null,null,null,null,null,null,null,null,null,null,null,null,null,null,null,null,{"$f":"COUNTIF(F35:AJ35,\"حضور\")","v":0},{"$f":"COUNTIF(F35:AJ35,\"غياب\")","v":0},{"$f":"COUNTIF(F35:AJ35,\"راحة\")","v":0},{"$f":"COUNTIF(F35:AJ35,\"إجازة\")","v":0},{"$f":"31-AL35","v":31}]
[null,null,null,null,null,null,null,null,null,null,null,null,null,null,null,null,null,null,null,null,null,null,null,null,null,null,null,null,null,null,null,null,null,null,null,null,{"$f":"COUNTIF(F36:AJ36,\"حضور\")","v":0},{"$f":"COUNTIF(F36:AJ36,\"غياب\")","v":0},{"$f":"COUNTIF(F36:AJ36,\"راحة\")","v":0},{"$f":"COUNTIF(F36:AJ36,\"إجازة\")","v":0},{"$f":"31-AL36","v":31}]
[null,null,null,null,null,null,null,null,null,null,null,null,null,null,null,null,null,null,null,null,null,null,null,null,null,null,null,null,null,null,null,null,null,null,null,null,{"$f":"COUNTIF(F37:AJ37,\"حضور\")","v":0},{"$f":"COUNTIF(F37:AJ37,\"غياب\")","v":0},{"$f":"COUNTIF(F37:AJ37,\"راحة\")","v":0},{"$f":"COUNTIF(F37:AJ37,\"إجازة\")","v":0},{"$f":"31-AL37","v":31}]
[null,null,null,null,null,null,null,null,null,null,null,null,null,null,null,null,null,null,null,null,null,null,null,null,null,null,null,null,null,null,null,null,null,null,null,null,{"$f":"COUNTIF(F38:AJ38,\"حضور\")","v":0},{"$f":"COUNTIF(F38:AJ38,\"غياب\")","v":0},{"$f":"COUNTIF(F38:AJ38,\"راحة\")","v":0},{"$f":"COUNTIF(F38:AJ38,\"إجازة\")","v":0},{"$f":"31-AL38","v":31}]
[null,null,null,null,null,null,null,null,null,null,null,null,null,null,null,null,null,null,null,null,null,null,null,null,null,null,null,null,null,null,null,null,null,null,null,null,{"$f":"COUNTIF(F39:AJ39,\"حضور\")","v":0},{"$f":"COUNTIF(F39:AJ39,\"غياب\")","v":0},{"$f":"COUNTIF(F39:AJ39,\"راحة\")","v":0},{"$f":"COUNTIF(F39:AJ39,\"إجازة\")","v":0},{"$f":"31-AL39","v":31}]
[null,null,null,null,null,null,null,null,null,null,null,null,null,null,null,null,null,null,null,null,null,null,null,null,null,null,null,null,null,null,null,null,null,null,null,null,{"$f":"COUNTIF(F40:AJ40,\"حضور\")","v":0},{"$f":"COUNTIF(F40:AJ40,\"غياب\")","v":0},{"$f":"COUNTIF(F40:AJ40,\"راحة\")","v":0},{"$f":"COUNTIF(F40:AJ40,\"إجازة\")","v":0},{"$f":"31-AL40","v":31}]
[null,null,null,null,null,null,null,null,null,null,null,null,null,null,null,null,null,null,null,null,null,null,null,null,null,null,null,null,null,null,null,null,null,null,null,null,{"$f":"COUNTIF(F41:AJ41,\"حضور\")","v":0},{"$f":"COUNTIF(F41:AJ41,\"غياب\")","v":0},{"$f":"COUNTIF(F41:AJ41,\"راحة\")","v":0},{"$f":"COUNTIF(F41:AJ41,\"إجازة\")","v":0},{"$f":"31-AL41","v":31}]
[null,null,null,null,null,null,null,null,null,null,null,null,null,null,null,null,null,null,null,null,null,null,null,null,null,null,null,null,null,null,null,null,null,null,null,null,{"$f":"COUNTIF(F42:AJ42,\"حضور\")","v":0},{"$f":"COUNTIF(F42:AJ42,\"غياب\")","v":0},{"$f":"COUNTIF(F42:AJ42,\"راحة\")","v":0},{"$f":"COUNTIF(F42:AJ42,\"إجازة\")","v":0},{"$f":"31-AL42","v":31}]
[null,null,null,null,null,null,null,null,null,null,null,null,null,null,null,null,null,null,null,null,null,null,null,null,null,null,null,null,null,null,null,null,null,null,null,null,{"$f":"COUNTIF(F43:AJ43,\"حضور\")","v":0},{"$f":"COUNTIF(F43:AJ43,\"غياب\")","v":0},{"$f":"COUNTIF(F43:AJ43,\"راحة\")","v":0},{"$f":"COUNTIF(F43:AJ43,\"إجازة\")","v":0},{"$f":"31-AL43","v":31}]
[null,null,null,null,null,null,null,null,null,null,null,null,null,null,null,null,null,null,null,null,null,null,null,null,null,null,null,null,null,null,null,null,null,null,null,null,{"$f":"COUNTIF(F44:AJ44,\"حضور\")","v":0},{"$f":"COUNTIF(F44:AJ44,\"غياب\")","v":0},{"$f":"COUNTIF(F44:AJ44,\"راحة\")","v":0},{"$f":"COUNTIF(F44:AJ44,\"إجازة\")","v":0},{"$f":"31-AL44","v":31}]
[null,null,null,null,null,null,null,null,null,null,null,null,null,null,null,null,null,null,null,null,null,null,null,null,null,null,null,null,null,null,null,null,null,null,null,null,{"$f":"COUNTIF(F45:AJ45,\"حضور\")","v":0},{"$f":"COUNTIF(F45:AJ45,\"غياب\")","v":0},{"$f":"COUNTIF(F45:AJ45,\"راحة\")","v":0},{"$f":"COUNTIF(F45:AJ45,\"إجازة\")","v":0},{"$f":"31-AL45","v":31}]
[null,null,null,null,null,null,null,null,null,null,null,null,null,null,null,null,null,null,null,null,null,null,null,null,null,null,null,null,null,null,null,null,null,null,null,null,{"$f":"COUNTIF(F46:AJ46,\"حضور\")","v":0},{"$f":"COUNTIF(F46:AJ46,\"غياب\")","v":0},{"$f":"COUNTIF(F46:AJ46,\"راحة\")","v":0},{"$f":"COUNTIF(F46:AJ46,\"إجازة\")","v":0},{"$f":"31-AL46","v":31}]
[null,null,null,null,null,null,null,null,null,null,null,null,null,null,null,null,null,null,null,null,null,null,null,null,null,null,null,null,null,null,null,null,null,null,null,null,{"$f":"COUNTIF(F47:AJ47,\"حضور\")","v":0},{"$f":"COUNTIF(F47:AJ47,\"غياب\")","v":0},{"$f":"COUNTIF(F47:AJ47,\"راحة\")","v":0},{"$f":"COUNTIF(F47:AJ47,\"إجازة\")","v":0},{"$f":"31-AL47","v":31}]
[null,null,null,null,null,null,null,null,null,null,null,null,null,null,null,null,null,null,null,null,null,null,null,null,null,null,null,null,null,null,null,null,null,null,null,null,{"$f":"COUNTIF(F48:AJ48,\"حضور\")","v":0},{"$f":"COUNTIF(F48:AJ48,\"غياب\")","v":0},{"$f":"COUNTIF(F48:AJ48,\"راحة\")","v":0},{"$f":"COUNTIF(F48:AJ48,\"إجازة\")","v":0},{"$f":"31-AL48","v":31}]
[null,null,null,null,null,null,null,null,null,null,null,null,null,null,null,null,null,null,null,null,null,null,null,null,null,null,null,null,null,null,null,null,null,null,null,null,{"$f":"COUNTIF(F49:AJ49,\"حضور\")","v":0},{"$f":"COUNTIF(F49:AJ49,\"غياب\")","v":0},{"$f":"COUNTIF(F49:AJ49,\"راحة\")","v":0},{"$f":"COUNTIF(F49:AJ49,\"إجازة\")","v":0},{"$f":"31-AL49","v":31}]
[null,null,null,null,null,null,null,null,null,null,null,null,null,null,null,null,null,null,null,null,null,null,null,null,null,null,null,null,null,null,null,null,null,null,null,null,{"$f":"COUNTIF(F50:AJ50,\"حضور\")","v":0},{"$f":"COUNTIF(F50:AJ50,\"غياب\")","v":0},{"$f":"COUNTIF(F50:AJ50,\"راحة\")","v":0},{"$f":"COUNTIF(F50:AJ50,\"إجازة\")","v":0},{"$f":"31-AL50","v":31}]
[null,null,null,null,null,null,null,null,null,null,null,null,null,null,null,null,null,null,null,null,null,null,null,null,null,null,null,null,null,null,null,null,null,null,null,null,{"$f":"COUNTIF(F51:AJ51,\"حضور\")","v":0},{"$f":"COUNTIF(F51:AJ51,\"غياب\")","v":0},{"$f":"COUNTIF(F51:AJ51,\"راحة\")","v":0},{"$f":"COUNTIF(F51:AJ51,\"إجازة\")","v":0},{"$f":"31-AL51","v":31}]
[null,null,null,null,null,null,null,null,null,null,null,null,null,null,null,null,null,null,null,null,null,null,null,null,null,null,null,null,null,null,null,null,null,null,null,null,{"$f":"COUNTIF(F52:AJ52,\"حضور\")","v":0},{"$f":"COUNTIF(F52:AJ52,\"غياب\")","v":0},{"$f":"COUNTIF(F52:AJ52,\"راحة\")","v":0},{"$f":"COUNTIF(F52:AJ52,\"إجازة\")","v":0},{"$f":"31-AL52","v":31}]
[null,null,null,null,null,null,null,null,null,null,null,null,null,null,null,null,null,null,null,null,null,null,null,null,null,null,null,null,null,null,null,null,null,null,null,null,{"$f":"COUNTIF(F53:AJ53,\"حضور\")","v":0},{"$f":"COUNTIF(F53:AJ53,\"غياب\")","v":0},{"$f":"COUNTIF(F53:AJ53,\"راحة\")","v":0},{"$f":"COUNTIF(F53:AJ53,\"إجازة\")","v":0},{"$f":"31-AL53","v":31}]
[null,null,null,null,null,null,null,null,null,null,null,null,null,null,null,null,null,null,null,null,null,null,null,null,null,null,null,null,null,null,null,null,null,null,null,null,{"$f":"COUNTIF(F54:AJ54,\"حضور\")","v":0},{"$f":"COUNTIF(F54:AJ54,\"غياب\")","v":0},{"$f":"COUNTIF(F54:AJ54,\"راحة\")","v":0},{"$f":"COUNTIF(F54:AJ54,\"إجازة\")","v":0},{"$f":"31-AL54","v":31}]
[null,null,null,null,null,null,null,null,null,null,null,null,null,null,null,null,null,null,null,null,null,null,null,null,null,null,null,null,null,null,null,null,null,null,null,null,{"$f":"COUNTIF(F55:AJ55,\"حضور\")","v":0},{"$f":"COUNTIF(F55:AJ55,\"غياب\")","v":0},{"$f":"COUNTIF(F55:AJ55,\"راحة\")","v":0},{"$f":"COUNTIF(F55:AJ55,\"إجازة\")","v":0},{"$f":"31-AL55","v":31}]
[null,null,null,null,null,null,null,null,null,null,null,null,null,null,null,null,null,null,null,null,null,null,null,null,null,null,null,null,null,null,null,null,null,null,null,null,{"$f":"COUNTIF(F56:AJ56,\"حضور\")","v":0},{"$f":"COUNTIF(F56:AJ56,\"غياب\")","v":0},{"$f":"COUNTIF(F56:AJ56,\"راحة\")","v":0},{"$f":"COUNTIF(F56:AJ56,\"إجازة\")","v":0},{"$f":"31-AL56","v":31}]
[null,null,null,null,null,null,null,null,null,null,null,null,null,null,null,null,null,null,null,null,null,null,null,null,null,null,null,null,null,null,null,null,null,null,null,null,{"$f":"COUNTIF(F57:AJ57,\"حضور\")","v":0},{"$f":"COUNTIF(F57:AJ57,\"غياب\")","v":0},{"$f":"COUNTIF(F57:AJ57,\"راحة\")","v":0},{"$f":"COUNTIF(F57:AJ57,\"إجازة\")","v":0},{"$f":"31-AL57","v":31}]
[null,null,null,null,null,null,null,null,null,null,null,null,null,null,null,null,null,null,null,null,null,null,null,null,null,null,null,null,null,null,null,null,null,null,null,null,{"$f":"COUNTIF(F58:AJ58,\"حضور\")","v":0},{"$f":"COUNTIF(F58:AJ58,\"غياب\")","v":0},{"$f":"COUNTIF(F58:AJ58,\"راحة\")","v":0},{"$f":"COUNTIF(F58:AJ58,\"إجازة\")","v":0},{"$f":"31-AL58","v":31}]
[null,null,null,null,null,null,null,null,null,null,null,null,null,null,null,null,null,null,null,null,null,null,null,null,null,null,null,null,null,null,null,null,null,null,null,null,{"$f":"COUNTIF(F59:AJ59,\"حضور\")","v":0},{"$f":"COUNTIF(F59:AJ59,\"غياب\")","v":0},{"$f":"COUNTIF(F59:AJ59,\"راحة\")","v":0},{"$f":"COUNTIF(F59:AJ59,\"إجازة\")","v":0},{"$f":"31-AL59","v":31}]
[null,null,null,null,null,null,null,null,null,null,null,null,null,null,null,null,null,null,null,null,null,null,null,null,null,null,null,null,null,null,null,null,null,null,null,null,{"$f":"COUNTIF(F60:AJ60,\"حضور\")","v":0},{"$f":"COUNTIF(F60:AJ60,\"غياب\")","v":0},{"$f":"COUNTIF(F60:AJ60,\"راحة\")","v":0},{"$f":"COUNTIF(F60:AJ60,\"إجازة\")","v":0},{"$f":"31-AL60","v":31}]
[null,null,null,null,null,null,null,null,null,null,null,null,null,null,null,null,null,null,null,null,null,null,null,null,null,null,null,null,null,null,null,null,null,null,null,null,{"$f":"COUNTIF(F61:AJ61,\"حضور\")","v":0},{"$f":"COUNTIF(F61:AJ61,\"غياب\")","v":0},{"$f":"COUNTIF(F61:AJ61,\"راحة\")","v":0},{"$f":"COUNTIF(F61:AJ61,\"إجازة\")","v":0},{"$f":"31-AL61","v":31}]
[null,null,null,null,null,null,null,null,null,null,null,null,null,null,null,null,null,null,null,null,null,null,null,null,null,null,null,null,null,null,null,null,null,null,null,null,{"$f":"COUNTIF(F62:AJ62,\"حضور\")","v":0},{"$f":"COUNTIF(F62:AJ62,\"غياب\")","v":0},{"$f":"COUNTIF(F62:AJ62,\"راحة\")","v":0},{"$f":"COUNTIF(F62:AJ62,\"إجازة\")","v":0},{"$f":"31-AL62","v":31}]
[null,null,null,null,null,null,null,null,null,null,null,null,null,null,null,null,null,null,null,null,null,null,null,null,null,null,null,null,null,null,null,null,null,null,null,null,{"$f":"COUNTIF(F63:AJ63,\"حضور\")","v":0},{"$f":"COUNTIF(F63:AJ63,\"غياب\")","v":0},{"$f":"COUNTIF(F63:AJ63,\"راحة\")","v":0},{"$f":"COUNTIF(F63:AJ63,\"إجازة\")","v":0},{"$f":"31-AL63","v":31}]
[null,null,null,null,null,null,null,null,null,null,null,null,null,null,null,null,null,null,null,null,null,null,null,null,null,null,null,null,null,null,null,null,null,null,null,null,{"$f":"COUNTIF(F64:AJ64,\"حضور\")","v":0},{"$f":"COUNTIF(F64:AJ64,\"غياب\")","v":0},{"$f":"COUNTIF(F64:AJ64,\"راحة\")","v":0},{"$f":"COUNTIF(F64:AJ64,\"إجازة\")","v":0},{"$f":"31-AL64","v":31}]
[null,null,null,null,null,null,null,null,null,null,null,null,null,null,null,null,null,null,null,null,null,null,null,null,null,null,null,null,null,null,null,null,null,null,null,null,{"$f":"COUNTIF(F65:AJ65,\"حضور\")","v":0},{"$f":"COUNTIF(F65:AJ65,\"غياب\")","v":0},{"$f":"COUNTIF(F65:AJ65,\"راحة\")","v":0},{"$f":"COUNTIF(F65:AJ65,\"إجازة\")","v":0},{"$f":"31-AL65","v":31}]
[null,null,null,null,null,null,null,null,null,null,null,null,null,null,null,null,null,null,null,null,null,null,null,null,null,null,null,null,null,null,null,null,null,null,null,null,{"$f":"COUNTIF(F66:AJ66,\"حضور\")","v":0},{"$f":"COUNTIF(F66:AJ66,\"غياب\")","v":0},{"$f":"COUNTIF(F66:AJ66,\"راحة\")","v":0},{"$f":"COUNTIF(F66:AJ66,\"إجازة\")","v":0},{"$f":"31-AL66","v":31}]
[null,null,null,null,null,null,null,null,null,null,null,null,null,null,null,null,null,null,null,null,null,null,null,null,null,null,null,null,null,null,null,null,null,null,null,null,{"$f":"COUNTIF(F67:AJ67,\"حضور\")","v":0},{"$f":"COUNTIF(F67:AJ67,\"غياب\")","v":0},{"$f":"COUNTIF(F67:AJ67,\"راحة\")","v":0},{"$f":"COUNTIF(F67:AJ67,\"إجازة\")","v":0},{"$f":"31-AL67","v":31}]
[null,null,null,null,null,null,null,null,null,null,null,null,null,null,null,null,null,null,null,null,null,null,null,null,null,null,null,null,null,null,null,null,null,null,null,null,{"$f":"COUNTIF(F68:AJ68,\"حضور\")","v":0},{"$f":"COUNTIF(F68:AJ68,\"غياب\")","v":0},{"$f":"COUNTIF(F68:AJ68,\"راحة\")","v":0},{"$f":"COUNTIF(F68:AJ68,\"إجازة\")","v":0},{"$f":"31-AL68","v":31}]
[null,null,null,null,null,null,null,null,null,null,null,null,null,null,null,null,null,null,null,null,null,null,null,null,null,null,null,null,null,null,null,null,null,null,null,null,{"$f":"COUNTIF(F69:AJ69,\"حضور\")","v":0},{"$f":"COUNTIF(F69:AJ69,\"غياب\")","v":0},{"$f":"COUNTIF(F69:AJ69,\"راحة\")","v":0},{"$f":"COUNTIF(F69:AJ69,\"إجازة\")","v":0},{"$f":"31-AL69","v":31}]
[null,null,null,null,null,null,null,null,null,null,null,null,null,null,null,null,null,null,null,null,null,null,null,null,null,null,null,null,null,null,null,null,null,null,null,null,{"$f":"COUNTIF(F70:AJ70,\"حضور\")","v":0},{"$f":"COUNTIF(F70:AJ70,\"غياب\")","v":0},{"$f":"COUNTIF(F70:AJ70,\"راحة\")","v":0},{"$f":"COUNTIF(F70:AJ70,\"إجازة\")","v":0},{"$f":"31-AL70","v":31}]
[null,null,null,null,null,null,null,null,null,null,null,null,null,null,null,null,null,null,null,null,null,null,null,null,null,null,null,null,null,null,null,null,null,null,null,null,{"$f":"COUNTIF(F71:AJ71,\"حضور\")","v":0},{"$f":"COUNTIF(F71:AJ71,\"غياب\")","v":0},{"$f":"COUNTIF(F71:AJ71,\"راحة\")","v":0},{"$f":"COUNTIF(F71:AJ71,\"إجازة\")","v":0},{"$f":"31-AL71","v":31}]
[null,null,null,null,null,null,null,null,null,null,null,null,null,null,null,null,null,null,null,null,null,null,null,null,null,null,null,null,null,null,null,null,null,null,null,null,{"$f":"COUNTIF(F72:AJ72,\"حضور\")","v":0},{"$f":"COUNTIF(F72:AJ72,\"غياب\")","v":0},{"$f":"COUNTIF(F72:AJ72,\"راحة\")","v":0},{"$f":"COUNTIF(F72:AJ72,\"إجازة\")","v":0},{"$f":"31-AL72","v":31}]
[null,null,null,null,null,null,null,null,null,null,null,null,null,null,null,null,null,null,null,null,null,null,null,null,null,null,null,null,null,null,null,null,null,null,null,null,{"$f":"COUNTIF(F73:AJ73,\"حضور\")","v":0},{"$f":"COUNTIF(F73:AJ73,\"غياب\")","v":0},{"$f":"COUNTIF(F73:AJ73,\"راحة\")","v":0},{"$f":"COUNTIF(F73:AJ73,\"إجازة\")","v":0},{"$f":"31-AL73","v":31}]
[null,null,null,null,null,null,null,null,null,null,null,null,null,null,null,null,null,null,null,null,null,null,null,null,null,null,null,null,null,null,null,null,null,null,null,null,{"$f":"COUNTIF(F74:AJ74,\"حضور\")","v":0},{"$f":"COUNTIF(F74:AJ74,\"غياب\")","v":0},{"$f":"COUNTIF(F74:AJ74,\"راحة\")","v":0},{"$f":"COUNTIF(F74:AJ74,\"إجازة\")","v":0},{"$f":"31-AL74","v":31}]
[null,null,null,null,null,null,null,null,null,null,null,null,null,null,null,null,null,null,null,null,null,null,null,null,null,null,null,null,null,null,null,null,null,null,null,null,{"$f":"COUNTIF(F75:AJ75,\"حضور\")","v":0},{"$f":"COUNTIF(F75:AJ75,\"غياب\")","v":0},{"$f":"COUNTIF(F75:AJ75,\"راحة\")","v":0},{"$f":"COUNTIF(F75:AJ75,\"إجازة\")","v":0},{"$f":"31-AL75","v":31}]
[null,null,null,null,null,null,null,null,null,null,null,null,null,null,null,null,null,null,null,null,null,null,null,null,null,null,null,null,null,null,null,null,null,null,null,null,{"$f":"COUNTIF(F76:AJ76,\"حضور\")","v":0},{"$f":"COUNTIF(F76:AJ76,\"غياب\")","v":0},{"$f":"COUNTIF(F76:AJ76,\"راحة\")","v":0},{"$f":"COUNTIF(F76:AJ76,\"إجازة\")","v":0},{"$f":"31-AL76","v":31}]
[null,null,null,null,null,null,null,null,null,null,null,null,null,null,null,null,null,null,null,null,null,null,null,null,null,null,null,null,null,null,null,null,null,null,null,null,{"$f":"COUNTIF(F77:AJ77,\"حضور\")","v":0},{"$f":"COUNTIF(F77:AJ77,\"غياب\")","v":0},{"$f":"COUNTIF(F77:AJ77,\"راحة\")","v":0},{"$f":"COUNTIF(F77:AJ77,\"إجازة\")","v":0},{"$f":"31-AL77","v":31}]
[null,null,null,null,null,null,null,null,null,null,null,null,null,null,null,null,null,null,null,null,null,null,null,null,null,null,null,null,null,null,null,null,null,null,null,null,{"$f":"COUNTIF(F78:AJ78,\"حضور\")","v":0},{"$f":"COUNTIF(F78:AJ78,\"غياب\")","v":0},{"$f":"COUNTIF(F78:AJ78,\"راحة\")","v":0},{"$f":"COUNTIF(F78:AJ78,\"إجازة\")","v":0},{"$f":"31-AL78","v":31}]
[null,null,null,null,null,null,null,null,null,null,null,null,null,null,null,null,null,null,null,null,null,null,null,null,null,null,null,null,null,null,null,null,null,null,null,null,{"$f":"COUNTIF(F79:AJ79,\"حضور\")","v":0},{"$f":"COUNTIF(F79:AJ79,\"غياب\")","v":0},{"$f":"COUNTIF(F79:AJ79,\"راحة\")","v":0},{"$f":"COUNTIF(F79:AJ79,\"إجازة\")","v":0},{"$f":"31-AL79","v":31}]
[null,null,null,null,null,null,null,null,null,null,null,null,null,null,null,null,null,null,null,null,null,null,null,null,null,null,null,null,null,null,null,null,null,null,null,null,{"$f":"COUNTIF(F80:AJ80,\"حضور\")","v":0},{"$f":"COUNTIF(F80:AJ80,\"غياب\")","v":0},{"$f":"COUNTIF(F80:AJ80,\"راحة\")","v":0},{"$f":"COUNTIF(F80:AJ80,\"إجازة\")","v":0},{"$f":"31-AL80","v":31}]
[null,null,null,null,null,null,null,null,null,null,null,null,null,null,null,null,null,null,null,null,null,null,null,null,null,null,null,null,null,null,null,null,null,null,null,null,{"$f":"COUNTIF(F81:AJ81,\"حضور\")","v":0},{"$f":"COUNTIF(F81:AJ81,\"غياب\")","v":0},{"$f":"COUNTIF(F81:AJ81,\"راحة\")","v":0},{"$f":"COUNTIF(F81:AJ81,\"إجازة\")","v":0},{"$f":"31-AL81","v":31}]
[null,null,null,null,null,null,null,null,null,null,null,null,null,null,null,null,null,null,null,null,null,null,null,null,null,null,null,null,null,null,null,null,null,null,null,null,{"$f":"COUNTIF(F82:AJ82,\"حضور\")","v":0},{"$f":"COUNTIF(F82:AJ82,\"غياب\")","v":0},{"$f":"COUNTIF(F82:AJ82,\"راحة\")","v":0},{"$f":"COUNTIF(F82:AJ82,\"إجازة\")","v":0},{"$f":"31-AL82","v":31}]
[null,null,null,null,null,null,null,null,null,null,null,null,null,null,null,null,null,null,null,null,null,null,null,null,null,null,null,null,null,null,null,null,null,null,null,null,{"$f":"COUNTIF(F83:AJ83,\"حضور\")","v":0},{"$f":"COUNTIF(F83:AJ83,\"غياب\")","v":0},{"$f":"COUNTIF(F83:AJ83,\"راحة\")","v":0},{"$f":"COUNTIF(F83:AJ83,\"إجازة\")","v":0},{"$f":"31-AL83","v":31}]
[null,null,null,null,null,null,null,null,null,null,null,null,null,null,null,null,null,null,null,null,null,null,null,null,null,null,null,null,null,null,null,null,null,null,null,null,{"$f":"COUNTIF(F84:AJ84,\"حضور\")","v":0},{"$f":"COUNTIF(F84:AJ84,\"غياب\")","v":0},{"$f":"COUNTIF(F84:AJ84,\"راحة\")","v":0},{"$f":"COUNTIF(F84:AJ84,\"إجازة\")","v":0},{"$f":"31-AL84","v":31}]
[null,null,null,null,null,null,null,null,null,null,null,null,null,null,null,null,null,null,null,null,null,null,null,null,null,null,null,null,null,null,null,null,null,null,null,null,{"$f":"COUNTIF(F85:AJ85,\"حضور\")","v":0},{"$f":"COUNTIF(F85:AJ85,\"غياب\")","v":0},{"$f":"COUNTIF(F85:AJ85,\"راحة\")","v":0},{"$f":"COUNTIF(F85:AJ85,\"إجازة\")","v":0},{"$f":"31-AL85","v":31}]
[null,null,null,null,null,null,null,null,null,null,null,null,null,null,null,null,null,null,null,null,null,null,null,null,null,null,null,null,null,null,null,null,null,null,null,null,{"$f":"COUNTIF(F86:AJ86,\"حضور\")","v":0},{"$f":"COUNTIF(F86:AJ86,\"غياب\")","v":0},{"$f":"COUNTIF(F86:AJ86,\"راحة\")","v":0},{"$f":"COUNTIF(F86:AJ86,\"إجازة\")","v":0},{"$f":"31-AL86","v":31}]
[null,null,null,null,null,null,null,null,null,null,null,null,null,null,null,null,null,null,null,null,null,null,null,null,null,null,null,null,null,null,null,null,null,null,null,null,{"$f":"COUNTIF(F87:AJ87,\"حضور\")","v":0},{"$f":"COUNTIF(F87:AJ87,\"غياب\")","v":0},{"$f":"COUNTIF(F87:AJ87,\"راحة\")","v":0},{"$f":"COUNTIF(F87:AJ87,\"إجازة\")","v":0},{"$f":"31-AL87","v":31}]
[null,null,null,null,null,null,null,null,null,null,null,null,null,null,null,null,null,null,null,null,null,null,null,null,null,null,null,null,null,null,null,null,null,null,null,null,{"$f":"COUNTIF(F88:AJ88,\"حضور\")","v":0},{"$f":"COUNTIF(F88:AJ88,\"غياب\")","v":0},{"$f":"COUNTIF(F88:AJ88,\"راحة\")","v":0},{"$f":"COUNTIF(F88:AJ88,\"إجازة\")","v":0},{"$f":"31-AL88","v":31},"16 يوم إجازة"]
[null,null,null,null,null,null,null,null,null,null,null,null,null,null,null,null,null,null,null,null,null,null,null,null,null,null,null,null,null,null,null,null,null,null,null,null,{"$f":"COUNTIF(F89:AJ89,\"حضور\")","v":0},{"$f":"COUNTIF(F89:AJ89,\"غياب\")","v":0},{"$f":"COUNTIF(F89:AJ89,\"راحة\")","v":0},{"$f":"COUNTIF(F89:AJ89,\"إجازة\")","v":0},{"$f":"31-AL89","v":31}]
[null,null,null,null,null,null,null,null,null,null,null,null,null,null,null,null,null,null,null,null,null,null,null,null,null,null,null,null,null,null,null,null,null,null,null,null,{"$f":"COUNTIF(F90:AJ90,\"حضور\")","v":0},{"$f":"COUNTIF(F90:AJ90,\"غياب\")","v":0},{"$f":"COUNTIF(F90:AJ90,\"راحة\")","v":0},{"$f":"COUNTIF(F90:AJ90,\"إجازة\")","v":0},{"$f":"31-AL90","v":31}]
[null,null,null,null,null,null,null,null,null,null,null,null,null,null,null,null,null,null,null,null,null,null,null,null,null,null,null,null,null,null,null,null,null,null,null,null,{"$f":"COUNTIF(F91:AJ91,\"حضور\")","v":0},{"$f":"COUNTIF(F91:AJ91,\"غياب\")","v":0},{"$f":"COUNTIF(F91:AJ91,\"راحة\")","v":0},{"$f":"COUNTIF(F91:AJ91,\"إجازة\")","v":0},{"$f":"31-AL91","v":31}]
[null,null,null,null,null,null,null,null,null,null,null,null,null,null,null,null,null,null,null,null,null,null,null,null,null,null,null,null,null,null,null,null,null,null,null,null,{"$f":"COUNTIF(F92:AJ92,\"حضور\")","v":0},{"$f":"COUNTIF(F92:AJ92,\"غياب\")","v":0},{"$f":"COUNTIF(F92:AJ92,\"راحة\")","v":0},{"$f":"COUNTIF(F92:AJ92,\"إجازة\")","v":0},{"$f":"31-AL92","v":31}]
[null,null,null,null,null,null,null,null,null,null,null,null,null,null,null,null,null,null,null,null,null,null,null,null,null,null,null,null,null,null,null,null,null,null,null,null,{"$f":"COUNTIF(F93:AJ93,\"حضور\")","v":0},{"$f":"COUNTIF(F93:AJ93,\"غياب\")","v":0},{"$f":"COUNTIF(F93:AJ93,\"راحة\")","v":0},{"$f":"COUNTIF(F93:AJ93,\"إجازة\")","v":0},{"$f":"31-AL93","v":31}]
[null,null,null,null,null,null,null,null,null,null,null,null,null,null,null,null,null,null,null,null,null,null,null,null,null,null,null,null,null,null,null,null,null,null,null,null,{"$f":"COUNTIF(F94:AJ94,\"حضور\")","v":0},{"$f":"COUNTIF(F94:AJ94,\"غياب\")","v":0},{"$f":"COUNTIF(F94:AJ94,\"راحة\")","v":0},{"$f":"COUNTIF(F94:AJ94,\"إجازة\")","v":0},{"$f":"31-AL94","v":31}]
[null,null,null,null,null,null,null,null,null,null,null,null,null,null,null,null,null,null,null,null,null,null,null,null,null,null,null,null,null,null,null,null,null,null,null,null,{"$f":"COUNTIF(F95:AJ95,\"حضور\")","v":0},{"$f":"COUNTIF(F95:AJ95,\"غياب\")","v":0},{"$f":"COUNTIF(F95:AJ95,\"راحة\")","v":0},{"$f":"COUNTIF(F95:AJ95,\"إجازة\")","v":0},{"$f":"31-AL95","v":31}]
[null,null,null,null,null,null,null,null,null,null,null,null,null,null,null,null,null,null,null,null,null,null,null,null,null,null,null,null,null,null,null,null,null,null,null,null,{"$f":"COUNTIF(F96:AJ96,\"حضور\")","v":0},{"$f":"COUNTIF(F96:AJ96,\"غياب\")","v":0},{"$f":"COUNTIF(F96:AJ96,\"راحة\")","v":0},{"$f":"COUNTIF(F96:AJ96,\"إجازة\")","v":0},{"$f":"31-AL96","v":31}]
[null,null,null,null,null,null,null,null,null,null,null,null,null,null,null,null,null,null,null,null,null,null,null,null,null,null,null,null,null,null,null,null,null,null,null,null,{"$f":"COUNTIF(F97:AJ97,\"حضور\")","v":0},{"$f":"COUNTIF(F97:AJ97,\"غياب\")","v":0},{"$f":"COUNTIF(F97:AJ97,\"راحة\")","v":0},{"$f":"COUNTIF(F97:AJ97,\"إجازة\")","v":0},{"$f":"31-AL97","v":31}]
[null,null,null,null,null,null,null,null,null,null,null,null,null,null,null,null,null,null,null,null,null,null,null,null,null,null,null,null,null,null,null,null,null,null,null,null,{"$f":"COUNTIF(F98:AJ98,\"حضور\")","v":0},{"$f":"COUNTIF(F98:AJ98,\"غياب\")","v":0},{"$f":"COUNTIF(F98:AJ98,\"راحة\")","v":0},{"$f":"COUNTIF(F98:AJ98,\"إجازة\")","v":0},{"$f":"31-AL98","v":31}]
[null,null,null,null,null,null,null,null,null,null,null,null,null,null,null,null,null,null,null,null,null,null,null,null,null,null,null,null,null,null,null,null,null,null,null,null,{"$f":"COUNTIF(F99:AJ99,\"حضور\")","v":0},{"$f":"COUNTIF(F99:AJ99,\"غياب\")","v":0},{"$f":"COUNTIF(F99:AJ99,\"راحة\")","v":0},{"$f":"COUNTIF(F99:AJ99,\"إجازة\")","v":0},{"$f":"31-AL99","v":31}]
[null,null,null,null,null,null,null,null,null,null,null,null,null,null,null,null,null,null,null,null,null,null,null,null,null,null,null,null,null,null,null,null,null,null,null,null,{"$f":"COUNTIF(F100:AJ100,\"حضور\")","v":0},{"$f":"COUNTIF(F100:AJ100,\"غياب\")","v":0},{"$f":"COUNTIF(F100:AJ100,\"راحة\")","v":0},{"$f":"COUNTIF(F100:AJ100,\"إجازة\")","v":0},{"$f":"31-AL100","v":31}]
[null,null,null,null,null,null,null,null,null,null,null,null,null,null,null,null,null,null,null,null,null,null,null,null,null,null,null,null,null,null,null,null,null,null,null,null,{"$f":"COUNTIF(F101:AJ101,\"حضور\")","v":0},{"$f":"COUNTIF(F101:AJ101,\"غياب\")","v":0},{"$f":"COUNTIF(F101:AJ101,\"راحة\")","v":0},{"$f":"COUNTIF(F101:AJ101,\"إجازة\")","v":0},{"$f":"31-AL101","v":31}]
[null,null,null,null,null,null,null,null,null,null,null,null,null,null,null,null,null,null,null,null,null,null,null,null,null,null,null,null,null,null,null,null,null,null,null,null,{"$f":"COUNTIF(F102:AJ102,\"حضور\")","v":0},{"$f":"COUNTIF(F102:AJ102,\"غياب\")","v":0},{"$f":"COUNTIF(F102:AJ102,\"راحة\")","v":0},{"$f":"COUNTIF(F102:AJ102,\"إجازة\")","v":0},{"$f":"31-AL102","v":31}]
[null,null,null,null,null,null,null,null,null,null,null,null,null,null,null,null,null,null,null,null,null,null,null,null,null,null,null,null,null,null,null,null,null,null,null,null,{"$f":"COUNTIF(F103:AJ103,\"حضور\")","v":0},{"$f":"COUNTIF(F103:AJ103,\"غياب\")","v":0},{"$f":"COUNTIF(F103:AJ103,\"راحة\")","v":0},{"$f":"COUNTIF(F103:AJ103,\"إجازة\")","v":0},{"$f":"31-AL103","v":31}]
[null,null,null,null,null,null,null,null,null,null,null,null,null,null,null,null,null,null,null,null,null,null,null,null,null,null,null,null,null,null,null,null,null,null,null,null,{"$f":"COUNTIF(F104:AJ104,\"حضور\")","v":0},{"$f":"COUNTIF(F104:AJ104,\"غياب\")","v":0},{"$f":"COUNTIF(F104:AJ104,\"راحة\")","v":0},{"$f":"COUNTIF(F104:AJ104,\"إجازة\")","v":0},{"$f":"31-AL104","v":31}]
[null,null,null,null,null,null,null,null,null,null,null,null,null,null,null,null,null,null,null,null,null,null,null,null,null,null,null,null,null,null,null,null,null,null,null,null,{"$f":"COUNTIF(F105:AJ105,\"حضور\")","v":0},{"$f":"COUNTIF(F105:AJ105,\"غياب\")","v":0},{"$f":"COUNTIF(F105:AJ105,\"راحة\")","v":0},{"$f":"COUNTIF(F105:AJ105,\"إجازة\")","v":0},{"$f":"31-AL105","v":31}]
[null,null,null,null,null,null,null,null,null,null,null,null,null,null,null,null,null,null,null,null,null,null,null,null,null,null,null,null,null,null,null,null,null,null,null,null,{"$f":"COUNTIF(F106:AJ106,\"حضور\")","v":0},{"$f":"COUNTIF(F106:AJ106,\"غياب\")","v":0},{"$f":"COUNTIF(F106:AJ106,\"راحة\")","v":0},{"$f":"COUNTIF(F106:AJ106,\"إجازة\")","v":0},{"$f":"31-AL106","v":31}]
[null,null,null,null,null,null,null,null,null,null,null,null,null,null,null,null,null,null,null,null,null,null,null,null,null,null,null,null,null,null,null,null,null,null,null,null,{"$f":"COUNTIF(F107:AJ107,\"حضور\")","v":0},{"$f":"COUNTIF(F107:AJ107,\"غياب\")","v":0},{"$f":"COUNTIF(F107:AJ107,\"راحة\")","v":0},{"$f":"COUNTIF(F107:AJ107,\"إجازة\")","v":0},{"$f":"31-AL107","v":31}]
[null,null,null,null,null,null,null,null,null,null,null,null,null,null,null,null,null,null,null,null,null,null,null,null,null,null,null,null,null,null,null,null,null,null,null,null,{"$f":"COUNTIF(F108:AJ108,\"حضور\")","v":0},{"$f":"COUNTIF(F108:AJ108,\"غياب\")","v":0},{"$f":"COUNTIF(F108:AJ108,\"راحة\")","v":0},{"$f":"COUNTIF(F108:AJ108,\"إجازة\")","v":0},{"$f":"31-AL108","v":31}]
[null,null,null,null,null,null,null,null,null,null,null,null,null,null,null,null,null,null,null,null,null,null,null,null,null,null,null,null,null,null,null,null,null,null,null,null,{"$f":"COUNTIF(F109:AJ109,\"حضور\")","v":0},{"$f":"COUNTIF(F109:AJ109,\"غياب\")","v":0},{"$f":"COUNTIF(F109:AJ109,\"راحة\")","v":0},{"$f":"COUNTIF(F109:AJ109,\"إجازة\")","v":0},{"$f":"31-AL109","v":31}]
[null,null,null,null,null,null,null,null,null,null,null,null,null,null,null,null,null,null,null,null,null,null,null,null,null,null,null,null,null,null,null,null,null,null,null,null,{"$f":"COUNTIF(F110:AJ110,\"حضور\")","v":0},{"$f":"COUNTIF(F110:AJ110,\"غياب\")","v":0},{"$f":"COUNTIF(F110:AJ110,\"راحة\")","v":0},{"$f":"COUNTIF(F110:AJ110,\"إجازة\")","v":0},{"$f":"31-AL110","v":31}]
[null,null,null,null,null,null,null,null,null,null,null,null,null,null,null,null,null,null,null,null,null,null,null,null,null,null,null,null,null,null,null,null,null,null,null,null,{"$f":"COUNTIF(F111:AJ111,\"حضور\")","v":0},{"$f":"COUNTIF(F111:AJ111,\"غياب\")","v":0},{"$f":"COUNTIF(F111:AJ111,\"راحة\")","v":0},{"$f":"COUNTIF(F111:AJ111,\"إجازة\")","v":0},{"$f":"31-AL111","v":31}]
[null,null,null,null,null,null,null,null,null,null,null,null,null,null,null,null,null,null,null,null,null,null,null,null,null,null,null,null,null,null,null,null,null,null,null,null,{"$f":"COUNTIF(F112:AJ112,\"حضور\")","v":0},{"$f":"COUNTIF(F112:AJ112,\"غياب\")","v":0},{"$f":"COUNTIF(F112:AJ112,\"راحة\")","v":0},{"$f":"COUNTIF(F112:AJ112,\"إجازة\")","v":0},{"$f":"31-AL112","v":31}]
[null,null,null,null,null,null,null,null,null,null,null,null,null,null,null,null,null,null,null,null,null,null,null,null,null,null,null,null,null,null,null,null,null,null,null,null,{"$f":"COUNTIF(F113:AJ113,\"حضور\")","v":0},{"$f":"COUNTIF(F113:AJ113,\"غياب\")","v":0},{"$f":"COUNTIF(F113:AJ113,\"راحة\")","v":0},{"$f":"COUNTIF(F113:AJ113,\"إجازة\")","v":0},{"$f":"31-AL113","v":31}]
[null,null,null,null,null,null,null,null,null,null,null,null,null,null,null,null,null,null,null,null,null,null,null,null,null,null,null,null,null,null,null,null,null,null,null,null,{"$f":"COUNTIF(F114:AJ114,\"حضور\")","v":0},{"$f":"COUNTIF(F114:AJ114,\"غياب\")","v":0},{"$f":"COUNTIF(F114:AJ114,\"راحة\")","v":0},{"$f":"COUNTIF(F114:AJ114,\"إجازة\")","v":0},{"$f":"31-AL114","v":31}]
[null,null,null,null,null,null,null,null,null,null,null,null,null,null,null,null,null,null,null,null,null,null,null,null,null,null,null,null,null,null,null,null,null,null,null,null,{"$f":"COUNTIF(F115:AJ115,\"حضور\")","v":0},{"$f":"COUNTIF(F115:AJ115,\"غياب\")","v":0},{"$f":"COUNTIF(F115:AJ115,\"راحة\")","v":0},{"$f":"COUNTIF(F115:AJ115,\"إجازة\")","v":0},{"$f":"31-AL115","v":31}]
[null,null,null,null,null,null,null,null,null,null,null,null,null,null,null,null,null,null,null,null,null,null,null,null,null,null,null,null,null,null,null,null,null,null,null,null,{"$f":"COUNTIF(F116:AJ116,\"حضور\")","v":0},{"$f":"COUNTIF(F116:AJ116,\"غياب\")","v":0},{"$f":"COUNTIF(F116:AJ116,\"راحة\")","v":0},{"$f":"COUNTIF(F116:AJ116,\"إجازة\")","v":0},{"$f":"31-AL116","v":31}]
[null,null,null,null,null,null,null,null,null,null,null,null,null,null,null,null,null,null,null,null,null,null,null,null,null,null,null,null,null,null,null,null,null,null,null,null,{"$f":"COUNTIF(F117:AJ117,\"حضور\")","v":0},{"$f":"COUNTIF(F117:AJ117,\"غياب\")","v":0},{"$f":"COUNTIF(F117:AJ117,\"راحة\")","v":0},{"$f":"COUNTIF(F117:AJ117,\"إجازة\")","v":0},{"$f":"31-AL117","v":31}]
[null,null,null,null,null,null,null,null,null,null,null,null,null,null,null,null,null,null,null,null,null,null,null,null,null,null,null,null,null,null,null,null,null,null,null,null,{"$f":"COUNTIF(F118:AJ118,\"حضور\")","v":0},{"$f":"COUNTIF(F118:AJ118,\"غياب\")","v":0},{"$f":"COUNTIF(F118:AJ118,\"راحة\")","v":0},{"$f":"COUNTIF(F118:AJ118,\"إجازة\")","v":0},{"$f":"31-AL118","v":31}]
[null,null,null,null,null,null,null,null,null,null,null,null,null,null,null,null,null,null,null,null,null,null,null,null,null,null,null,null,null,null,null,null,null,null,null,null,{"$f":"COUNTIF(F119:AJ119,\"حضور\")","v":0},{"$f":"COUNTIF(F119:AJ119,\"غياب\")","v":0},{"$f":"COUNTIF(F119:AJ119,\"راحة\")","v":0},{"$f":"COUNTIF(F119:AJ119,\"إجازة\")","v":0},{"$f":"31-AL119","v":31}]
[null,null,null,null,null,null,null,null,null,null,null,null,null,null,null,null,null,null,null,null,null,null,null,null,null,null,null,null,null,null,null,null,null,null,null,null,{"$f":"COUNTIF(F120:AJ120,\"حضور\")","v":0},{"$f":"COUNTIF(F120:AJ120,\"غياب\")","v":0},{"$f":"COUNTIF(F120:AJ120,\"راحة\")","v":0},{"$f":"COUNTIF(F120:AJ120,\"إجازة\")","v":0},{"$f":"31-AL120","v":31}]
[null,null,null,null,null,null,null,null,null,null,null,null,null,null,null,null,null,null,null,null,null,null,null,null,null,null,null,null,null,null,null,null,null,null,null,null,{"$f":"COUNTIF(F121:AJ121,\"حضور\")","v":0},{"$f":"COUNTIF(F121:AJ121,\"غياب\")","v":0},{"$f":"COUNTIF(F121:AJ121,\"راحة\")","v":0},{"$f":"COUNTIF(F121:AJ121,\"إجازة\")","v":0},{"$f":"31-AL121","v":31}]
[null,null,null,null,null,null,null,null,null,null,null,null,null,null,null,null,null,null,null,null,null,null,null,null,null,null,null,null,null,null,null,null,null,null,null,null,{"$f":"COUNTIF(F122:AJ122,\"حضور\")","v":0},{"$f":"COUNTIF(F122:AJ122,\"غياب\")","v":0},{"$f":"COUNTIF(F122:AJ122,\"راحة\")","v":0},{"$f":"COUNTIF(F122:AJ122,\"إجازة\")","v":0},{"$f":"31-AL122","v":31}]
[null,null,null,null,null,null,null,null,null,null,null,null,null,null,null,null,null,null,null,null,null,null,null,null,null,null,null,null,null,null,null,null,null,null,null,null,{"$f":"COUNTIF(F123:AJ123,\"حضور\")","v":0},{"$f":"COUNTIF(F123:AJ123,\"غياب\")","v":0},{"$f":"COUNTIF(F123:AJ123,\"راحة\")","v":0},{"$f":"COUNTIF(F123:AJ123,\"إجازة\")","v":0},{"$f":"31-AL123","v":31}]
[null,null,null,null,null,null,null,null,null,null,null,null,null,null,null,null,null,null,null,null,null,null,null,null,null,null,null,null,null,null,null,null,null,null,null,null,{"$f":"COUNTIF(F124:AJ124,\"حضور\")","v":0},{"$f":"COUNTIF(F124:AJ124,\"غياب\")","v":0},{"$f":"COUNTIF(F124:AJ124,\"راحة\")","v":0},{"$f":"COUNTIF(F124:AJ124,\"إجازة\")","v":0},{"$f":"31-AL124","v":31}]
[null,null,null,null,null,null,null,null,null,null,null,null,null,null,null,null,null,null,null,null,null,null,null,null,null,null,null,null,null,null,null,null,null,null,null,null,{"$f":"COUNTIF(F125:AJ125,\"حضور\")","v":0},{"$f":"COUNTIF(F125:AJ125,\"غياب\")","v":0},{"$f":"COUNTIF(F125:AJ125,\"راحة\")","v":0},{"$f":"COUNTIF(F125:AJ125,\"إجازة\")","v":0},{"$f":"31-AL125","v":31}]
[null,null,null,null,null,null,null,null,null,null,null,null,null,null,null,null,null,null,null,null,null,null,null,null,null,null,null,null,null,null,null,null,null,null,null,null,{"$f":"COUNTIF(F126:AJ126,\"حضور\")","v":0},{"$f":"COUNTIF(F126:AJ126,\"غياب\")","v":0},{"$f":"COUNTIF(F126:AJ126,\"راحة\")","v":0},{"$f":"COUNTIF(F126:AJ126,\"إجازة\")","v":0},{"$f":"31-AL126","v":31}]
[null,null,null,null,null,null,null,null,null,null,null,null,null,null,null,null,null,null,null,null,null,null,null,null,null,null,null,null,null,null,null,null,null,null,null,null,{"$f":"COUNTIF(F127:AJ127,\"حضور\")","v":0},{"$f":"COUNTIF(F127:AJ127,\"غياب\")","v":0},{"$f":"COUNTIF(F127:AJ127,\"راحة\")","v":0},{"$f":"COUNTIF(F127:AJ127,\"إجازة\")","v":0},{"$f":"31-AL127","v":31}]
[null,null,null,null,null,null,null,null,null,null,null,null,null,null,null,null,null,null,null,null,null,null,null,null,null,null,null,null,null,null,null,null,null,null,null,null,{"$f":"COUNTIF(F128:AJ128,\"حضور\")","v":0},{"$f":"COUNTIF(F128:AJ128,\"غياب\")","v":0},{"$f":"COUNTIF(F128:AJ128,\"راحة\")","v":0},{"$f":"COUNTIF(F128:AJ128,\"إجازة\")","v":0},{"$f":"31-AL128","v":31}]
[null,null,null,null,null,null,null,null,null,null,null,null,null,null,null,null,null,null,null,null,null,null,null,null,null,null,null,null,null,null,null,null,null,null,null,null,{"$f":"COUNTIF(F129:AJ129,\"حضور\")","v":0},{"$f":"COUNTIF(F129:AJ129,\"غياب\")","v":0},{"$f":"COUNTIF(F129:AJ129,\"راحة\")","v":0},{"$f":"COUNTIF(F129:AJ129,\"إجازة\")","v":0},{"$f":"31-AL129","v":31}]
[null,null,null,null,null,null,null,null,null,null,null,null,null,null,null,null,null,null,null,null,null,null,null,null,null,null,null,null,null,null,null,null,null,null,null,null,{"$f":"COUNTIF(F130:AJ130,\"حضور\")","v":0},{"$f":"COUNTIF(F130:AJ130,\"غياب\")","v":0},{"$f":"COUNTIF(F130:AJ130,\"راحة\")","v":0},{"$f":"COUNTIF(F130:AJ130,\"إجازة\")","v":0},{"$f":"31-AL130","v":31}]
[null,null,null,null,null,null,null,null,null,null,null,null,null,null,null,null,null,null,null,null,null,null,null,null,null,null,null,null,null,null,null,null,null,null,null,null,{"$f":"COUNTIF(F131:AJ131,\"حضور\")","v":0},{"$f":"COUNTIF(F131:AJ131,\"غياب\")","v":0},{"$f":"COUNTIF(F131:AJ131,\"راحة\")","v":0},{"$f":"COUNTIF(F131:AJ131,\"إجازة\")","v":0},{"$f":"31-AL131","v":31}]
[null,null,null,null,null,null,null,null,null,null,null,null,null,null,null,null,null,null,null,null,null,null,null,null,null,null,null,null,null,null,null,null,null,null,null,null,{"$f":"COUNTIF(F132:AJ132,\"حضور\")","v":0},{"$f":"COUNTIF(F132:AJ132,\"غياب\")","v":0},{"$f":"COUNTIF(F132:AJ132,\"راحة\")","v":0},{"$f":"COUNTIF(F132:AJ132,\"إجازة\")","v":0},{"$f":"31-AL132","v":31}]
[null,null,null,null,null,null,null,null,null,null,null,null,null,null,null,null,null,null,null,null,null,null,null,null,null,null,null,null,null,null,null,null,null,null,null,null,{"$f":"COUNTIF(F133:AJ133,\"حضور\")","v":0},{"$f":"COUNTIF(F133:AJ133,\"غياب\")","v":0},{"$f":"COUNTIF(F133:AJ133,\"راحة\")","v":0},{"$f":"COUNTIF(F133:AJ133,\"إجازة\")","v":0},{"$f":"31-AL133","v":31}]
[null,null,null,null,null,null,null,null,null,null,null,null,null,null,null,null,null,null,null,null,null,null,null,null,null,null,null,null,null,null,null,null,null,null,null,null,{"$f":"COUNTIF(F134:AJ134,\"حضور\")","v":0},{"$f":"COUNTIF(F134:AJ134,\"غياب\")","v":0},{"$f":"COUNTIF(F134:AJ134,\"راحة\")","v":0},{"$f":"COUNTIF(F134:AJ134,\"إجازة\")","v":0},{"$f":"31-AL134","v":31}]
[null,null,null,null,null,null,null,null,null,null,null,null,null,null,null,null,null,null,null,null,null,null,null,null,null,null,null,null,null,null,null,null,null,null,null,null,{"$f":"COUNTIF(F135:AJ135,\"حضور\")","v":0},{"$f":"COUNTIF(F135:AJ135,\"غياب\")","v":0},{"$f":"COUNTIF(F135:AJ135,\"راحة\")","v":0},{"$f":"COUNTIF(F135:AJ135,\"إجازة\")","v":0},{"$f":"31-AL135","v":31}]
[null,null,null,null,null,null,null,null,null,null,null,null,null,null,null,null,null,null,null,null,null,null,null,null,null,null,null,null,null,null,null,null,null,null,null,null,{"$f":"COUNTIF(F136:AJ136,\"حضور\")","v":0},{"$f":"COUNTIF(F136:AJ136,\"غياب\")","v":0},{"$f":"COUNTIF(F136:AJ136,\"راحة\")","v":0},{"$f":"COUNTIF(F136:AJ136,\"إجازة\")","v":0},{"$f":"31-AL136","v":31}]
[null,null,null,null,null,null,null,null,null,null,null,null,null,null,null,null,null,null,null,null,null,null,null,null,null,null,null,null,null,null,null,null,null,null,null,null,{"$f":"COUNTIF(F137:AJ137,\"حضور\")","v":0},{"$f":"COUNTIF(F137:AJ137,\"غياب\")","v":0},{"$f":"COUNTIF(F137:AJ137,\"راحة\")","v":0},{"$f":"COUNTIF(F137:AJ137,\"إجازة\")","v":0},{"$f":"31-AL137","v":31}]
[null,null,null,null,null,null,null,null,null,null,null,null,null,null,null,null,null,null,null,null,null,null,null,null,null,null,null,null,null,null,null,null,null,null,null,null,{"$f":"COUNTIF(F138:AJ138,\"حضور\")","v":0},{"$f":"COUNTIF(F138:AJ138,\"غياب\")","v":0},{"$f":"COUNTIF(F138:AJ138,\"راحة\")","v":0},{"$f":"COUNTIF(F138:AJ138,\"إجازة\")","v":0},{"$f":"31-AL138","v":31}]
[null,null,null,null,null,null,null,null,null,null,null,null,null,null,null,null,null,null,null,null,null,null,null,null,null,null,null,null,null,null,null,null,null,null,null,null,{"$f":"COUNTIF(F139:AJ139,\"حضور\")","v":0},{"$f":"COUNTIF(F139:AJ139,\"غياب\")","v":0},{"$f":"COUNTIF(F139:AJ139,\"راحة\")","v":0},{"$f":"COUNTIF(F139:AJ139,\"إجازة\")","v":0},{"$f":"31-AL139","v":31}]
[null,null,null,null,null,null,null,null,null,null,null,null,null,null,null,null,null,null,null,null,null,null,null,null,null,null,null,null,null,null,null,null,null,null,null,null,{"$f":"COUNTIF(F140:AJ140,\"حضور\")","v":0},{"$f":"COUNTIF(F140:AJ140,\"غياب\")","v":0},{"$f":"COUNTIF(F140:AJ140,\"راحة\")","v":0},{"$f":"COUNTIF(F140:AJ140,\"إجازة\")","v":0},{"$f":"31-AL140","v":31}]
[null,null,null,null,null,null,null,null,null,null,null,null,null,null,null,null,null,null,null,null,null,null,null,null,null,null,null,null,null,null,null,null,null,null,null,null,{"$f":"COUNTIF(F141:AJ141,\"حضور\")","v":0},{"$f":"COUNTIF(F141:AJ141,\"غياب\")","v":0},{"$f":"COUNTIF(F141:AJ141,\"راحة\")","v":0},{"$f":"COUNTIF(F141:AJ141,\"إجازة\")","v":0},{"$f":"31-AL141","v":31}]
[null,null,null,null,null,null,null,null,null,null,null,null,null,null,null,null,null,null,null,null,null,null,null,null,null,null,null,null,null,null,null,null,null,null,null,null,{"$f":"COUNTIF(F142:AJ142,\"حضور\")","v":0},{"$f":"COUNTIF(F142:AJ142,\"غياب\")","v":0},{"$f":"COUNTIF(F142:AJ142,\"راحة\")","v":0},{"$f":"COUNTIF(F142:AJ142,\"إجازة\")","v":0},{"$f":"31-AL142","v":31}]
[null,null,null,null,null,null,null,null,null,null,null,null,null,null,null,null,null,null,null,null,null,null,null,null,null,null,null,null,null,null,null,null,null,null,null,null,{"$f":"COUNTIF(F143:AJ143,\"حضور\")","v":0},{"$f":"COUNTIF(F143:AJ143,\"غياب\")","v":0},{"$f":"COUNTIF(F143:AJ143,\"راحة\")","v":0},{"$f":"COUNTIF(F143:AJ143,\"إجازة\")","v":0},{"$f":"31-AL143","v":31}]
[null,null,null,null,null,null,null,null,null,null,null,null,null,null,null,null,null,null,null,null,null,null,null,null,null,null,null,null,null,null,null,null,null,null,null,null,{"$f":"COUNTIF(F144:AJ144,\"حضور\")","v":0},{"$f":"COUNTIF(F144:AJ144,\"غياب\")","v":0},{"$f":"COUNTIF(F144:AJ144,\"راحة\")","v":0},{"$f":"COUNTIF(F144:AJ144,\"إجازة\")","v":0},{"$f":"31-AL144","v":31}]
[null,null,null,null,null,null,null,null,null,null,null,null,null,null,null,null,null,null,null,null,null,null,null,null,null,null,null,null,null,null,null,null,null,null,null,null,{"$f":"COUNTIF(F145:AJ145,\"حضور\")","v":0},{"$f":"COUNTIF(F145:AJ145,\"غياب\")","v":0},{"$f":"COUNTIF(F145:AJ145,\"راحة\")","v":0},{"$f":"COUNTIF(F145:AJ145,\"إجازة\")","v":0},{"$f":"31-AL145","v":31}]
[null,null,null,null,null,null,null,null,null,null,null,null,null,null,null,null,null,null,null,null,null,null,null,null,null,null,null,null,null,null,null,null,null,null,null,null,{"$f":"COUNTIF(F146:AJ146,\"حضور\")","v":0},{"$f":"COUNTIF(F146:AJ146,\"غياب\")","v":0},{"$f":"COUNTIF(F146:AJ146,\"راحة\")","v":0},{"$f":"COUNTIF(F146:AJ146,\"إجازة\")","v":0},{"$f":"31-AL146","v":31}]
[null,null,null,null,null,null,null,null,null,null,null,null,null,null,null,null,null,null,null,null,null,null,null,null,null,null,null,null,null,null,null,null,null,null,null,null,{"$f":"COUNTIF(F147:AJ147,\"حضور\")","v":0},{"$f":"COUNTIF(F147:AJ147,\"غياب\")","v":0},{"$f":"COUNTIF(F147:AJ147,\"راحة\")","v":0},{"$f":"COUNTIF(F147:AJ147,\"إجازة\")","v":0},{"$f":"31-AL147","v":31}]
[null,null,null,null,null,null,null,null,null,null,null,null,null,null,null,null,null,null,null,null,null,null,null,null,null,null,null,null,null,null,null,null,null,null,null,null,{"$f":"COUNTIF(F148:AJ148,\"حضور\")","v":0},{"$f":"COUNTIF(F148:AJ148,\"غياب\")","v":0},{"$f":"COUNTIF(F148:AJ148,\"راحة\")","v":0},{"$f":"COUNTIF(F148:AJ148,\"إجازة\")","v":0},{"$f":"31-AL148","v":31}]
[null,null,null,null,null,null,null,null,null,null,null,null,null,null,null,null,null,null,null,null,null,null,null,null,null,null,null,null,null,null,null,null,null,null,null,null,{"$f":"COUNTIF(F149:AJ149,\"حضور\")","v":0},{"$f":"COUNTIF(F149:AJ149,\"غياب\")","v":0},{"$f":"COUNTIF(F149:AJ149,\"راحة\")","v":0},{"$f":"COUNTIF(F149:AJ149,\"إجازة\")","v":0},{"$f":"31-AL149","v":31}]
[null,null,null,null,null,null,null,null,null,null,null,null,null,null,null,null,null,null,null,null,null,null,null,null,null,null,null,null,null,null,null,null,null,null,null,null,{"$f":"COUNTIF(F150:AJ150,\"حضور\")","v":0},{"$f":"COUNTIF(F150:AJ150,\"غياب\")","v":0},{"$f":"COUNTIF(F150:AJ150,\"راحة\")","v":0},{"$f":"COUNTIF(F150:AJ150,\"إجازة\")","v":0},{"$f":"31-AL150","v":31}]
[null,null,null,null,null,null,null,null,null,null,null,null,null,null,null,null,null,null,null,null,null,null,null,null,null,null,null,null,null,null,null,null,null,null,null,null,{"$f":"COUNTIF(F151:AJ151,\"حضور\")","v":0},{"$f":"COUNTIF(F151:AJ151,\"غياب\")","v":0},{"$f":"COUNTIF(F151:AJ151,\"راحة\")","v":0},{"$f":"COUNTIF(F151:AJ151,\"إجازة\")","v":0},{"$f":"31-AL151","v":31}]
[null,null,null,null,null,null,null,null,null,null,null,null,null,null,null,null,null,null,null,null,null,null,null,null,null,null,null,null,null,null,null,null,null,null,null,null,{"$f":"COUNTIF(F152:AJ152,\"حضور\")","v":0},{"$f":"COUNTIF(F152:AJ152,\"غياب\")","v":0},{"$f":"COUNTIF(F152:AJ152,\"راحة\")","v":0},{"$f":"COUNTIF(F152:AJ152,\"إجازة\")","v":0},{"$f":"31-AL152","v":31}]
[null,null,null,null,null,null,null,null,null,null,null,null,null,null,null,null,null,null,null,null,null,null,null,null,null,null,null,null,null,null,null,null,null,null,null,null,{"$f":"COUNTIF(F153:AJ153,\"حضور\")","v":0},{"$f":"COUNTIF(F153:AJ153,\"غياب\")","v":0},{"$f":"COUNTIF(F153:AJ153,\"راحة\")","v":0},{"$f":"COUNTIF(F153:AJ153,\"إجازة\")","v":0},{"$f":"31-AL153","v":31}]
[null,null,null,null,null,null,null,null,null,null,null,null,null,null,null,null,null,null,null,null,null,null,null,null,null,null,null,null,null,null,null,null,null,null,null,null,{"$f":"COUNTIF(F154:AJ154,\"حضور\")","v":0},{"$f":"COUNTIF(F154:AJ154,\"غياب\")","v":0},{"$f":"COUNTIF(F154:AJ154,\"راحة\")","v":0},{"$f":"COUNTIF(F154:AJ154,\"إجازة\")","v":0},{"$f":"31-AL154","v":31}]
[null,null,null,null,null,null,null,null,null,null,null,null,null,null,null,null,null,null,null,null,null,null,null,null,null,null,null,null,null,null,null,null,null,null,null,null,{"$f":"COUNTIF(F155:AJ155,\"حضور\")","v":0},{"$f":"COUNTIF(F155:AJ155,\"غياب\")","v":0},{"$f":"COUNTIF(F155:AJ155,\"راحة\")","v":0},{"$f":"COUNTIF(F155:AJ155,\"إجازة\")","v":0},{"$f":"31-AL155","v":31}]
[null,null,null,null,null,null,null,null,null,null,null,null,null,null,null,null,null,null,null,null,null,null,null,null,null,null,null,null,null,null,null,null,null,null,null,null,{"$f":"COUNTIF(F156:AJ156,\"حضور\")","v":0},{"$f":"COUNTIF(F156:AJ156,\"غياب\")","v":0},{"$f":"COUNTIF(F156:AJ156,\"راحة\")","v":0},{"$f":"COUNTIF(F156:AJ156,\"إجازة\")","v":0},{"$f":"31-AL156","v":31}]
[null,null,null,null,null,null,null,null,null,null,null,null,null,null,null,null,null,null,null,null,null,null,null,null,null,null,null,null,null,null,null,null,null,null,null,null,{"$f":"COUNTIF(F157:AJ157,\"حضور\")","v":0},{"$f":"COUNTIF(F157:AJ157,\"غياب\")","v":0},{"$f":"COUNTIF(F157:AJ157,\"راحة\")","v":0},{"$f":"COUNTIF(F157:AJ157,\"إجازة\")","v":0},{"$f":"31-AL157","v":31}]
[null,null,null,null,null,null,null,null,null,null,null,null,null,null,null,null,null,null,null,null,null,null,null,null,null,null,null,null,null,null,null,null,null,null,null,null,{"$f":"COUNTIF(F158:AJ158,\"حضور\")","v":0},{"$f":"COUNTIF(F158:AJ158,\"غياب\")","v":0},{"$f":"COUNTIF(F158:AJ158,\"راحة\")","v":0},{"$f":"COUNTIF(F158:AJ158,\"إجازة\")","v":0},{"$f":"31-AL158","v":31}]
[null,null,null,null,null,null,null,null,null,null,null,null,null,null,null,null,null,null,null,null,null,null,null,null,null,null,null,null,null,null,null,null,null,null,null,null,{"$f":"COUNTIF(F159:AJ159,\"حضور\")","v":0},{"$f":"COUNTIF(F159:AJ159,\"غياب\")","v":0},{"$f":"COUNTIF(F159:AJ159,\"راحة\")","v":0},{"$f":"COUNTIF(F159:AJ159,\"إجازة\")","v":0},{"$f":"31-AL159","v":31}]
[null,null,null,null,null,null,null,null,null,null,null,null,null,null,null,null,null,null,null,null,null,null,null,null,null,null,null,null,null,null,null,null,null,null,null,null,{"$f":"COUNTIF(F160:AJ160,\"حضور\")","v":0},{"$f":"COUNTIF(F160:AJ160,\"غياب\")","v":0},{"$f":"COUNTIF(F160:AJ160,\"راحة\")","v":0},{"$f":"COUNTIF(F160:AJ160,\"إجازة\")","v":0},{"$f":"31-AL160","v":31}]
[null,null,null,null,null,null,null,null,null,null,null,null,null,null,null,null,null,null,null,null,null,null,null,null,null,null,null,null,null,null,null,null,null,null,null,null,{"$f":"COUNTIF(F161:AJ161,\"حضور\")","v":0},{"$f":"COUNTIF(F161:AJ161,\"غياب\")","v":0},{"$f":"COUNTIF(F161:AJ161,\"راحة\")","v":0},{"$f":"COUNTIF(F161:AJ161,\"إجازة\")","v":0},{"$f":"31-AL161","v":31}]
[null,null,null,null,null,null,null,null,null,null,null,null,null,null,null,null,null,null,null,null,null,null,null,null,null,null,null,null,null,null,null,null,null,null,null,null,{"$f":"COUNTIF(F162:AJ162,\"حضور\")","v":0},{"$f":"COUNTIF(F162:AJ162,\"غياب\")","v":0},{"$f":"COUNTIF(F162:AJ162,\"راحة\")","v":0},{"$f":"COUNTIF(F162:AJ162,\"إجازة\")","v":0},{"$f":"31-AL162","v":31}]
[null,null,null,null,null,null,null,null,null,null,null,null,null,null,null,null,null,null,null,null,null,null,null,null,null,null,null,null,null,null,null,null,null,null,null,null,{"$f":"COUNTIF(F163:AJ163,\"حضور\")","v":0},{"$f":"COUNTIF(F163:AJ163,\"غياب\")","v":0},{"$f":"COUNTIF(F163:AJ163,\"راحة\")","v":0},{"$f":"COUNTIF(F163:AJ163,\"إجازة\")","v":0},{"$f":"31-AL163","v":31}]
[null,null,null,null,null,null,null,null,null,null,null,null,null,null,null,null,null,null,null,null,null,null,null,null,null,null,null,null,null,null,null,null,null,null,null,null,{"$f":"COUNTIF(F164:AJ164,\"حضور\")","v":0},{"$f":"COUNTIF(F164:AJ164,\"غياب\")","v":0},{"$f":"COUNTIF(F164:AJ164,\"راحة\")","v":0},{"$f":"COUNTIF(F164:AJ164,\"إجازة\")","v":0},{"$f":"31-AL164","v":31}]
[null,null,null,null,null,null,null,null,null,null,null,null,null,null,null,null,null,null,null,null,null,null,null,null,null,null,null,null,null,null,null,null,null,null,null,null,{"$f":"COUNTIF(F165:AJ165,\"حضور\")","v":0},{"$f":"COUNTIF(F165:AJ165,\"غياب\")","v":0},{"$f":"COUNTIF(F165:AJ165,\"راحة\")","v":0},{"$f":"COUNTIF(F165:AJ165,\"إجازة\")","v":0},{"$f":"31-AL165","v":31}]
[null,null,null,null,null,null,null,null,null,null,null,null,null,null,null,null,null,null,null,null,null,null,null,null,null,null,null,null,null,null,null,null,null,null,null,null,{"$f":"COUNTIF(F166:AJ166,\"حضور\")","v":0},{"$f":"COUNTIF(F166:AJ166,\"غياب\")","v":0},{"$f":"COUNTIF(F166:AJ166,\"راحة\")","v":0},{"$f":"COUNTIF(F166:AJ166,\"إجازة\")","v":0},{"$f":"31-AL166","v":31}]
[null,null,null,null,null,null,null,null,null,null,null,null,null,null,null,null,null,null,null,null,null,null,null,null,null,null,null,null,null,null,null,null,null,null,null,null,{"$f":"COUNTIF(F167:AJ167,\"حضور\")","v":0},{"$f":"COUNTIF(F167:AJ167,\"غياب\")","v":0},{"$f":"COUNTIF(F167:AJ167,\"راحة\")","v":0},{"$f":"COUNTIF(F167:AJ167,\"إجازة\")","v":0},{"$f":"31-AL167","v":31}]
[null,null,null,null,null,null,null,null,null,null,null,null,null,null,null,null,null,null,null,null,null,null,null,null,null,null,null,null,null,null,null,null,null,null,null,null,{"$f":"COUNTIF(F168:AJ168,\"حضور\")","v":0},{"$f":"COUNTIF(F168:AJ168,\"غياب\")","v":0},{"$f":"COUNTIF(F168:AJ168,\"راحة\")","v":0},{"$f":"COUNTIF(F168:AJ168,\"إجازة\")","v":0},{"$f":"31-AL168","v":31}]
[null,null,null,null,null,null,null,null,null,null,null,null,null,null,null,null,null,null,null,null,null,null,null,null,null,null,null,null,null,null,null,null,null,null,null,null,{"$f":"COUNTIF(F169:AJ169,\"حضور\")","v":0},{"$f":"COUNTIF(F169:AJ169,\"غياب\")","v":0},{"$f":"COUNTIF(F169:AJ169,\"راحة\")","v":0},{"$f":"COUNTIF(F169:AJ169,\"إجازة\")","v":0},{"$f":"31-AL169","v":31}]
[null,null,null,null,null,null,null,null,null,null,null,null,null,null,null,null,null,null,null,null,null,null,null,null,null,null,null,null,null,null,null,null,null,null,null,null,{"$f":"COUNTIF(F170:AJ170,\"حضور\")","v":0},{"$f":"COUNTIF(F170:AJ170,\"غياب\")","v":0},{"$f":"COUNTIF(F170:AJ170,\"راحة\")","v":0},{"$f":"COUNTIF(F170:AJ170,\"إجازة\")","v":0},{"$f":"31-AL170","v":31}]
[null,null,null,null,null,null,null,null,null,null,null,null,null,null,null,null,null,null,null,null,null,null,null,null,null,null,null,null,null,null,null,null,null,null,null,null,{"$f":"COUNTIF(F171:AJ171,\"حضور\")","v":0},{"$f":"COUNTIF(F171:AJ171,\"غياب\")","v":0},{"$f":"COUNTIF(F171:AJ171,\"راحة\")","v":0},{"$f":"COUNTIF(F171:AJ171,\"إجازة\")","v":0},{"$f":"31-AL171","v":31}]
[null,null,null,null,null,null,null,null,null,null,null,null,null,null,null,null,null,null,null,null,null,null,null,null,null,null,null,null,null,null,null,null,null,null,null,null,{"$f":"COUNTIF(F172:AJ172,\"حضور\")","v":0},{"$f":"COUNTIF(F172:AJ172,\"غياب\")","v":0},{"$f":"COUNTIF(F172:AJ172,\"راحة\")","v":0},{"$f":"COUNTIF(F172:AJ172,\"إجازة\")","v":0},{"$f":"31-AL172","v":31}]
[null,null,null,null,null,null,null,null,null,null,null,null,null,null,null,null,null,null,null,null,null,null,null,null,null,null,null,null,null,null,null,null,null,null,null,null,{"$f":"COUNTIF(F173:AJ173,\"حضور\")","v":0},{"$f":"COUNTIF(F173:AJ173,\"غياب\")","v":0},{"$f":"COUNTIF(F173:AJ173,\"راحة\")","v":0},{"$f":"COUNTIF(F173:AJ173,\"إجازة\")","v":0},{"$f":"31-AL173","v":31}]
[null,null,null,null,null,null,null,null,null,null,null,null,null,null,null,null,null,null,null,null,null,null,null,null,null,null,null,null,null,null,null,null,null,null,null,null,{"$f":"COUNTIF(F174:AJ174,\"حضور\")","v":0},{"$f":"COUNTIF(F174:AJ174,\"غياب\")","v":0},{"$f":"COUNTIF(F174:AJ174,\"راحة\")","v":0},{"$f":"COUNTIF(F174:AJ174,\"إجازة\")","v":0},{"$f":"31-AL174","v":31}]
[null,null,null,null,null,null,null,null,null,null,null,null,null,null,null,null,null,null,null,null,null,null,null,null,null,null,null,null,null,null,null,null,null,null,null,null,{"$f":"COUNTIF(F175:AJ175,\"حضور\")","v":0},{"$f":"COUNTIF(F175:AJ175,\"غياب\")","v":0},{"$f":"COUNTIF(F175:AJ175,\"راحة\")","v":0},{"$f":"COUNTIF(F175:AJ175,\"إجازة\")","v":0},{"$f":"31-AL175","v":31}]
[null,null,null,null,null,null,null,null,null,null,null,null,null,null,null,null,null,null,null,null,null,null,null,null,null,null,null,null,null,null,null,null,null,null,null,null,{"$f":"COUNTIF(F176:AJ176,\"حضور\")","v":0},{"$f":"COUNTIF(F176:AJ176,\"غياب\")","v":0},{"$f":"COUNTIF(F176:AJ176,\"راحة\")","v":0},{"$f":"COUNTIF(F176:AJ176,\"إجازة\")","v":0},{"$f":"31-AL176","v":31}]
[null,null,null,null,null,null,null,null,null,null,null,null,null,null,null,null,null,null,null,null,null,null,null,null,null,null,null,null,null,null,null,null,null,null,null,null,{"$f":"COUNTIF(F177:AJ177,\"حضور\")","v":0},{"$f":"COUNTIF(F177:AJ177,\"غياب\")","v":0},{"$f":"COUNTIF(F177:AJ177,\"راحة\")","v":0},{"$f":"COUNTIF(F177:AJ177,\"إجازة\")","v":0},{"$f":"31-AL177","v":31}]
[null,null,null,null,null,null,null,null,null,null,null,null,null,null,null,null,null,null,null,null,null,null,null,null,null,null,null,null,null,null,null,null,null,null,null,null,{"$f":"COUNTIF(F178:AJ178,\"حضور\")","v":0},{"$f":"COUNTIF(F178:AJ178,\"غياب\")","v":0},{"$f":"COUNTIF(F178:AJ178,\"راحة\")","v":0},{"$f":"COUNTIF(F178:AJ178,\"إجازة\")","v":0},{"$f":"31-AL178","v":31}]
[null,null,null,null,null,null,null,null,null,null,null,null,null,null,null,null,null,null,null,null,null,null,null,null,null,null,null,null,null,null,null,null,null,null,null,null,{"$f":"COUNTIF(F179:AJ179,\"حضور\")","v":0},{"$f":"COUNTIF(F179:AJ179,\"غياب\")","v":0},{"$f":"COUNTIF(F179:AJ179,\"راحة\")","v":0},{"$f":"COUNTIF(F179:AJ179,\"إجازة\")","v":0},{"$f":"31-AL179","v":31}]
[null,null,null,null,null,null,null,null,null,null,null,null,null,null,null,null,null,null,null,null,null,null,null,null,null,null,null,null,null,null,null,null,null,null,null,null,{"$f":"COUNTIF(F180:AJ180,\"حضور\")","v":0},{"$f":"COUNTIF(F180:AJ180,\"غياب\")","v":0},{"$f":"COUNTIF(F180:AJ180,\"راحة\")","v":0},{"$f":"COUNTIF(F180:AJ180,\"إجازة\")","v":0},{"$f":"31-AL180","v":31}]
[null,null,null,null,null,null,null,null,null,null,null,null,null,null,null,null,null,null,null,null,null,null,null,null,null,null,null,null,null,null,null,null,null,null,null,null,{"$f":"COUNTIF(F181:AJ181,\"حضور\")","v":0},{"$f":"COUNTIF(F181:AJ181,\"غياب\")","v":0},{"$f":"COUNTIF(F181:AJ181,\"راحة\")","v":0},{"$f":"COUNTIF(F181:AJ181,\"إجازة\")","v":0},{"$f":"31-AL181","v":31}]
[null,null,null,null,null,null,null,null,null,null,null,null,null,null,null,null,null,null,null,null,null,null,null,null,null,null,null,null,null,null,null,null,null,null,null,null,{"$f":"COUNTIF(F182:AJ182,\"حضور\")","v":0},{"$f":"COUNTIF(F182:AJ182,\"غياب\")","v":0},{"$f":"COUNTIF(F182:AJ182,\"راحة\")","v":0},{"$f":"COUNTIF(F182:AJ182,\"إجازة\")","v":0},{"$f":"31-AL182","v":31}]
[null,null,null,null,null,null,null,null,null,null,null,null,null,null,null,null,null,null,null,null,null,null,null,null,null,null,null,null,null,null,null,null,null,null,null,null,{"$f":"COUNTIF(F183:AJ183,\"حضور\")","v":0},{"$f":"COUNTIF(F183:AJ183,\"غياب\")","v":0},{"$f":"COUNTIF(F183:AJ183,\"راحة\")","v":0},{"$f":"COUNTIF(F183:AJ183,\"إجازة\")","v":0},{"$f":"31-AL183","v":31}]
[null,null,null,null,null,null,null,null,null,null,null,null,null,null,null,null,null,null,null,null,null,null,null,null,null,null,null,null,null,null,null,null,null,null,null,null,{"$f":"COUNTIF(F184:AJ184,\"حضور\")","v":0},{"$f":"COUNTIF(F184:AJ184,\"غياب\")","v":0},{"$f":"COUNTIF(F184:AJ184,\"راحة\")","v":0},{"$f":"COUNTIF(F184:AJ184,\"إجازة\")","v":0},{"$f":"31-AL184","v":31}]
[null,null,null,null,null,null,null,null,null,null,null,null,null,null,null,null,null,null,null,null,null,null,null,null,null,null,null,null,null,null,null,null,null,null,null,null,{"$f":"COUNTIF(F185:AJ185,\"حضور\")","v":0},{"$f":"COUNTIF(F185:AJ185,\"غياب\")","v":0},{"$f":"COUNTIF(F185:AJ185,\"راحة\")","v":0},{"$f":"COUNTIF(F185:AJ185,\"إجازة\")","v":0},{"$f":"31-AL185","v":31}]
[null,null,null,null,null,null,null,null,null,null,null,null,null,null,null,null,null,null,null,null,null,null,null,null,null,null,null,null,null,null,null,null,null,null,null,null,{"$f":"COUNTIF(F186:AJ186,\"حضور\")","v":0},{"$f":"COUNTIF(F186:AJ186,\"غياب\")","v":0},{"$f":"COUNTIF(F186:AJ186,\"راحة\")","v":0},{"$f":"COUNTIF(F186:AJ186,\"إجازة\")","v":0},{"$f":"31-AL186","v":31}]
[null,null,null,null,null,null,null,null,null,null,null,null,null,null,null,null,null,null,null,null,null,null,null,null,null,null,null,null,null,null,null,null,null,null,null,null,{"$f":"COUNTIF(F187:AJ187,\"حضور\")","v":0},{"$f":"COUNTIF(F187:AJ187,\"غياب\")","v":0},{"$f":"COUNTIF(F187:AJ187,\"راحة\")","v":0},{"$f":"COUNTIF(F187:AJ187,\"إجازة\")","v":0},{"$f":"31-AL187","v":31}]
[null,null,null,null,null,null,null,null,null,null,null,null,null,null,null,null,null,null,null,null,null,null,null,null,null,null,null,null,null,null,null,null,null,null,null,null,{"$f":"COUNTIF(F188:AJ188,\"حضور\")","v":0},{"$f":"COUNTIF(F188:AJ188,\"غياب\")","v":0},{"$f":"COUNTIF(F188:AJ188,\"راحة\")","v":0},{"$f":"COUNTIF(F188:AJ188,\"إجازة\")","v":0},{"$f":"31-AL188","v":31}]
[null,null,null,null,null,null,null,null,null,null,null,null,null,null,null,null,null,null,null,null,null,null,null,null,null,null,null,null,null,null,null,null,null,null,null,null,{"$f":"COUNTIF(F189:AJ189,\"حضور\")","v":0},{"$f":"COUNTIF(F189:AJ189,\"غياب\")","v":0},{"$f":"COUNTIF(F189:AJ189,\"راحة\")","v":0},{"$f":"COUNTIF(F189:AJ189,\"إجازة\")","v":0},{"$f":"31-AL189","v":31}]
[null,null,null,null,null,null,null,null,null,null,null,null,null,null,null,null,null,null,null,null,null,null,null,null,null,null,null,null,null,null,null,null,null,null,null,null,{"$f":"COUNTIF(F190:AJ190,\"حضور\")","v":0},{"$f":"COUNTIF(F190:AJ190,\"غياب\")","v":0},{"$f":"COUNTIF(F190:AJ190,\"راحة\")","v":0},{"$f":"COUNTIF(F190:AJ190,\"إجازة\")","v":0},{"$f":"31-AL190","v":31}]
[null,null,null,null,null,null,null,null,null,null,null,null,null,null,null,null,null,null,null,null,null,null,null,null,null,null,null,null,null,null,null,null,null,null,null,null,{"$f":"COUNTIF(F191:AJ191,\"حضور\")","v":0},{"$f":"COUNTIF(F191:AJ191,\"غياب\")","v":0},{"$f":"COUNTIF(F191:AJ191,\"راحة\")","v":0},{"$f":"COUNTIF(F191:AJ191,\"إجازة\")","v":0},{"$f":"31-AL191","v":31}]
[null,null,null,null,null,null,null,null,null,null,null,null,null,null,null,null,null,null,null,null,null,null,null,null,null,null,null,null,null,null,null,null,null,null,null,null,{"$f":"COUNTIF(F192:AJ192,\"حضور\")","v":0},{"$f":"COUNTIF(F192:AJ192,\"غياب\")","v":0},{"$f":"COUNTIF(F192:AJ192,\"راحة\")","v":0},{"$f":"COUNTIF(F192:AJ192,\"إجازة\")","v":0},{"$f":"31-AL192","v":31}]
[null,null,null,null,null,null,null,null,null,null,null,null,null,null,null,null,null,null,null,null,null,null,null,null,null,null,null,null,null,null,null,null,null,null,null,null,{"$f":"COUNTIF(F193:AJ193,\"حضور\")","v":0},{"$f":"COUNTIF(F193:AJ193,\"غياب\")","v":0},{"$f":"COUNTIF(F193:AJ193,\"راحة\")","v":0},{"$f":"COUNTIF(F193:AJ193,\"إجازة\")","v":0},{"$f":"31-AL193","v":31}]
[null,null,null,null,null,null,null,null,null,null,null,null,null,null,null,null,null,null,null,null,null,null,null,null,null,null,null,null,null,null,null,null,null,null,null,null,{"$f":"COUNTIF(F194:AJ194,\"حضور\")","v":0},{"$f":"COUNTIF(F194:AJ194,\"غياب\")","v":0},{"$f":"COUNTIF(F194:AJ194,\"راحة\")","v":0},{"$f":"COUNTIF(F194:AJ194,\"إجازة\")","v":0},{"$f":"31-AL194","v":31}]
[null,null,null,null,null,null,null,null,null,null,null,null,null,null,null,null,null,null,null,null,null,null,null,null,null,null,null,null,null,null,null,null,null,null,null,null,{"$f":"COUNTIF(F195:AJ195,\"حضور\")","v":0},{"$f":"COUNTIF(F195:AJ195,\"غياب\")","v":0},{"$f":"COUNTIF(F195:AJ195,\"راحة\")","v":0},{"$f":"COUNTIF(F195:AJ195,\"إجازة\")","v":0},{"$f":"31-AL195","v":31}]
[null,null,null,null,null,null,null,null,null,null,null,null,null,null,null,null,null,null,null,null,null,null,null,null,null,null,null,null,null,null,null,null,null,null,null,null,{"$f":"COUNTIF(F196:AJ196,\"حضور\")","v":0},{"$f":"COUNTIF(F196:AJ196,\"غياب\")","v":0},{"$f":"COUNTIF(F196:AJ196,\"راحة\")","v":0},{"$f":"COUNTIF(F196:AJ196,\"إجازة\")","v":0},{"$f":"31-AL196","v":31}]
[null,null,null,null,null,null,null,null,null,null,null,null,null,null,null,null,null,null,null,null,null,null,null,null,null,null,null,null,null,null,null,null,null,null,null,null,{"$f":"COUNTIF(F197:AJ197,\"حضور\")","v":0},{"$f":"COUNTIF(F197:AJ197,\"غياب\")","v":0},{"$f":"COUNTIF(F197:AJ197,\"راحة\")","v":0},{"$f":"COUNTIF(F197:AJ197,\"إجازة\")","v":0},{"$f":"31-AL197","v":31}]
[null,null,null,null,null,null,null,null,null,null,null,null,null,null,null,null,null,null,null,null,null,null,null,null,null,null,null,null,null,null,null,null,null,null,null,null,{"$f":"COUNTIF(F198:AJ198,\"حضور\")","v":0},{"$f":"COUNTIF(F198:AJ198,\"غياب\")","v":0},{"$f":"COUNTIF(F198:AJ198,\"راحة\")","v":0},{"$f":"COUNTIF(F198:AJ198,\"إجازة\")","v":0},{"$f":"31-AL198","v":31}]
[null,null,null,null,null,null,null,null,null,null,null,null,null,null,null,null,null,null,null,null,null,null,null,null,null,null,null,null,null,null,null,null,null,null,null,null,{"$f":"COUNTIF(F199:AJ199,\"حضور\")","v":0},{"$f":"COUNTIF(F199:AJ199,\"غياب\")","v":0},{"$f":"COUNTIF(F199:AJ199,\"راحة\")","v":0},{"$f":"COUNTIF(F199:AJ199,\"إجازة\")","v":0},{"$f":"31-AL199","v":31}]
[null,null,null,null,null,null,null,null,null,null,null,null,null,null,null,null,null,null,null,null,null,null,null,null,null,null,null,null,null,null,null,null,null,null,null,null,{"$f":"COUNTIF(F200:AJ200,\"حضور\")","v":0},{"$f":"COUNTIF(F200:AJ200,\"غياب\")","v":0},{"$f":"COUNTIF(F200:AJ200,\"راحة\")","v":0},{"$f":"COUNTIF(F200:AJ200,\"إجازة\")","v":0},{"$f":"31-AL200","v":31}]
[null,null,null,null,null,null,null,null,null,null,null,null,null,null,null,null,null,null,null,null,null,null,null,null,null,null,null,null,null,null,null,null,null,null,null,null,{"$f":"COUNTIF(F201:AJ201,\"حضور\")","v":0},{"$f":"COUNTIF(F201:AJ201,\"غياب\")","v":0},{"$f":"COUNTIF(F201:AJ201,\"راحة\")","v":0},{"$f":"COUNTIF(F201:AJ201,\"إجازة\")","v":0},{"$f":"31-AL201","v":31}]
[null,null,null,null,null,null,null,null,null,null,null,null,null,null,null,null,null,null,null,null,null,null,null,null,null,null,null,null,null,null,null,null,null,null,null,null,{"$f":"COUNTIF(F202:AJ202,\"حضور\")","v":0},{"$f":"COUNTIF(F202:AJ202,\"غياب\")","v":0},{"$f":"COUNTIF(F202:AJ202,\"راحة\")","v":0},{"$f":"COUNTIF(F202:AJ202,\"إجازة\")","v":0},{"$f":"31-AL202","v":31}]
[null,null,null,null,null,null,null,null,null,null,null,null,null,null,null,null,null,null,null,null,null,null,null,null,null,null,null,null,null,null,null,null,null,null,null,null,{"$f":"COUNTIF(F203:AJ203,\"حضور\")","v":0},{"$f":"COUNTIF(F203:AJ203,\"غياب\")","v":0},{"$f":"COUNTIF(F203:AJ203,\"راحة\")","v":0},{"$f":"COUNTIF(F203:AJ203,\"إجازة\")","v":0},{"$f":"31-AL203","v":31}]
[null,null,null,null,null,null,null,null,null,null,null,null,null,null,null,null,null,null,null,null,null,null,null,null,null,null,null,null,null,null,null,null,null,null,null,null,{"$f":"COUNTIF(F204:AJ204,\"حضور\")","v":0},{"$f":"COUNTIF(F204:AJ204,\"غياب\")","v":0},{"$f":"COUNTIF(F204:AJ204,\"راحة\")","v":0},{"$f":"COUNTIF(F204:AJ204,\"إجازة\")","v":0},{"$f":"31-AL204","v":31}]
[null,null,null,null,null,null,null,null,null,null,null,null,null,null,null,null,null,null,null,null,null,null,null,null,null,null,null,null,null,null,null,null,null,null,null,null,{"$f":"COUNTIF(F205:AJ205,\"حضور\")","v":0},{"$f":"COUNTIF(F205:AJ205,\"غياب\")","v":0},{"$f":"COUNTIF(F205:AJ205,\"راحة\")","v":0},{"$f":"COUNTIF(F205:AJ205,\"إجازة\")","v":0},{"$f":"31-AL205","v":31}]
[null,null,null,null,null,null,null,null,null,null,null,null,null,null,null,null,null,null,null,null,null,null,null,null,null,null,null,null,null,null,null,null,null,null,null,null,{"$f":"COUNTIF(F206:AJ206,\"حضور\")","v":0},{"$f":"COUNTIF(F206:AJ206,\"غياب\")","v":0},{"$f":"COUNTIF(F206:AJ206,\"راحة\")","v":0},{"$f":"COUNTIF(F206:AJ206,\"إجازة\")","v":0},{"$f":"31-AL206","v":31}]
[null,null,null,null,null,null,null,null,null,null,null,null,null,null,null,null,null,null,null,null,null,null,null,null,null,null,null,null,null,null,null,null,null,null,null,null,{"$f":"COUNTIF(F207:AJ207,\"حضور\")","v":0},{"$f":"COUNTIF(F207:AJ207,\"غياب\")","v":0},{"$f":"COUNTIF(F207:AJ207,\"راحة\")","v":0},{"$f":"COUNTIF(F207:AJ207,\"إجازة\")","v":0},{"$f":"31-AL207","v":31}]
[null,null,null,null,null,null,null,null,null,null,null,null,null,null,null,null,null,null,null,null,null,null,null,null,null,null,null,null,null,null,null,null,null,null,null,null,{"$f":"COUNTIF(F208:AJ208,\"حضور\")","v":0},{"$f":"COUNTIF(F208:AJ208,\"غياب\")","v":0},{"$f":"COUNTIF(F208:AJ208,\"راحة\")","v":0},{"$f":"COUNTIF(F208:AJ208,\"إجازة\")","v":0},{"$f":"31-AL208","v":31}]
[null,null,null,null,null,null,null,null,null,null,null,null,null,null,null,null,null,null,null,null,null,null,null,null,null,null,null,null,null,null,null,null,null,null,null,null,{"$f":"COUNTIF(F209:AJ209,\"حضور\")","v":0},{"$f":"COUNTIF(F209:AJ209,\"غياب\")","v":0},{"$f":"COUNTIF(F209:AJ209,\"راحة\")","v":0},{"$f":"COUNTIF(F209:AJ209,\"إجازة\")","v":0},{"$f":"31-AL209","v":31}]
[null,null,null,null,null,null,null,null,null,null,null,null,null,null,null,null,null,null,null,null,null,null,null,null,null,null,null,null,null,null,null,null,null,null,null,null,{"$f":"COUNTIF(F210:AJ210,\"حضور\")","v":0},{"$f":"COUNTIF(F210:AJ210,\"غياب\")","v":0},{"$f":"COUNTIF(F210:AJ210,\"راحة\")","v":0},{"$f":"COUNTIF(F210:AJ210,\"إجازة\")","v":0},{"$f":"31-AL210","v":31}]
[null,null,null,null,null,null,null,null,null,null,null,null,null,null,null,null,null,null,null,null,null,null,null,null,null,null,null,null,null,null,null,null,null,null,null,null,{"$f":"COUNTIF(F211:AJ211,\"حضور\")","v":0},{"$f":"COUNTIF(F211:AJ211,\"غياب\")","v":0},{"$f":"COUNTIF(F211:AJ211,\"راحة\")","v":0},{"$f":"COUNTIF(F211:AJ211,\"إجازة\")","v":0},{"$f":"31-AL211","v":31}]
[null,null,null,null,null,null,null,null,null,null,null,null,null,null,null,null,null,null,null,null,null,null,null,null,null,null,null,null,null,null,null,null,null,null,null,null,{"$f":"COUNTIF(F212:AJ212,\"حضور\")","v":0},{"$f":"COUNTIF(F212:AJ212,\"غياب\")","v":0},{"$f":"COUNTIF(F212:AJ212,\"راحة\")","v":0},{"$f":"COUNTIF(F212:AJ212,\"إجازة\")","v":0},{"$f":"31-AL212","v":31}]
[null,null,null,null,null,null,null,null,null,null,null,null,null,null,null,null,null,null,null,null,null,null,null,null,null,null,null,null,null,null,null,null,null,null,null,null,{"$f":"COUNTIF(F213:AJ213,\"حضور\")","v":0},{"$f":"COUNTIF(F213:AJ213,\"غياب\")","v":0},{"$f":"COUNTIF(F213:AJ213,\"راحة\")","v":0},{"$f":"COUNTIF(F213:AJ213,\"إجازة\")","v":0},{"$f":"31-AL213","v":31}]
[null,null,null,null,null,null,null,null,null,null,null,null,null,null,null,null,null,null,null,null,null,null,null,null,null,null,null,null,null,null,null,null,null,null,null,null,{"$f":"COUNTIF(F214:AJ214,\"حضور\")","v":0},{"$f":"COUNTIF(F214:AJ214,\"غياب\")","v":0},{"$f":"COUNTIF(F214:AJ214,\"راحة\")","v":0},{"$f":"COUNTIF(F214:AJ214,\"إجازة\")","v":0},{"$f":"31-AL214","v":31}]
[null,null,null,null,null,null,null,null,null,null,null,null,null,null,null,null,null,null,null,null,null,null,null,null,null,null,null,null,null,null,null,null,null,null,null,null,{"$f":"COUNTIF(F215:AJ215,\"حضور\")","v":0},{"$f":"COUNTIF(F215:AJ215,\"غياب\")","v":0},{"$f":"COUNTIF(F215:AJ215,\"راحة\")","v":0},{"$f":"COUNTIF(F215:AJ215,\"إجازة\")","v":0},{"$f":"31-AL215","v":31}]
[null,null,null,null,null,null,null,null,null,null,null,null,null,null,null,null,null,null,null,null,null,null,null,null,null,null,null,null,null,null,null,null,null,null,null,null,{"$f":"COUNTIF(F216:AJ216,\"حضور\")","v":0},{"$f":"COUNTIF(F216:AJ216,\"غياب\")","v":0},{"$f":"COUNTIF(F216:AJ216,\"راحة\")","v":0},{"$f":"COUNTIF(F216:AJ216,\"إجازة\")","v":0},{"$f":"31-AL216","v":31}]
[null,null,null,null,null,null,null,null,null,null,null,null,null,null,null,null,null,null,null,null,null,null,null,null,null,null,null,null,null,null,null,null,null,null,null,null,{"$f":"COUNTIF(F217:AJ217,\"حضور\")","v":0},{"$f":"COUNTIF(F217:AJ217,\"غياب\")","v":0},{"$f":"COUNTIF(F217:AJ217,\"راحة\")","v":0},{"$f":"COUNTIF(F217:AJ217,\"إجازة\")","v":0},{"$f":"31-AL217","v":31}]
[null,null,null,null,null,null,null,null,null,null,null,null,null,null,null,null,null,null,null,null,null,null,null,null,null,null,null,null,null,null,null,null,null,null,null,null,{"$f":"COUNTIF(F218:AJ218,\"حضور\")","v":0},{"$f":"COUNTIF(F218:AJ218,\"غياب\")","v":0},{"$f":"COUNTIF(F218:AJ218,\"راحة\")","v":0},{"$f":"COUNTIF(F218:AJ218,\"إجازة\")","v":0},{"$f":"31-AL218","v":31}]
[null,null,null,null,null,null,null,null,null,null,null,null,null,null,null,null,null,null,null,null,null,null,null,null,null,null,null,null,null,null,null,null,null,null,null,null,{"$f":"COUNTIF(F219:AJ219,\"حضور\")","v":0},{"$f":"COUNTIF(F219:AJ219,\"غياب\")","v":0},{"$f":"COUNTIF(F219:AJ219,\"راحة\")","v":0},{"$f":"COUNTIF(F219:AJ219,\"إجازة\")","v":0},{"$f":"31-AL219","v":31}]
[null,null,null,null,null,null,null,null,null,null,null,null,null,null,null,null,null,null,null,null,null,null,null,null,null,null,null,null,null,null,null,null,null,null,null,null,{"$f":"COUNTIF(F220:AJ220,\"حضور\")","v":0},{"$f":"COUNTIF(F220:AJ220,\"غياب\")","v":0},{"$f":"COUNTIF(F220:AJ220,\"راحة\")","v":0},{"$f":"COUNTIF(F220:AJ220,\"إجازة\")","v":0},{"$f":"31-AL220","v":31}]
[null,null,null,null,null,null,null,null,null,null,null,null,null,null,null,null,null,null,null,null,null,null,null,null,null,null,null,null,null,null,null,null,null,null,null,null,{"$f":"COUNTIF(F221:AJ221,\"حضور\")","v":0},{"$f":"COUNTIF(F221:AJ221,\"غياب\")","v":0},{"$f":"COUNTIF(F221:AJ221,\"راحة\")","v":0},{"$f":"COUNTIF(F221:AJ221,\"إجازة\")","v":0},{"$f":"31-AL221","v":31}]
[null,null,null,null,null,null,null,null,null,null,null,null,null,null,null,null,null,null,null,null,null,null,null,null,null,null,null,null,null,null,null,null,null,null,null,null,{"$f":"COUNTIF(F222:AJ222,\"حضور\")","v":0},{"$f":"COUNTIF(F222:AJ222,\"غياب\")","v":0},{"$f":"COUNTIF(F222:AJ222,\"راحة\")","v":0},{"$f":"COUNTIF(F222:AJ222,\"إجازة\")","v":0},{"$f":"31-AL222","v":31}]
[null,null,null,null,null,null,null,null,null,null,null,null,null,null,null,null,null,null,null,null,null,null,null,null,null,null,null,null,null,null,null,null,null,null,null,null,{"$f":"COUNTIF(F223:AJ223,\"حضور\")","v":0},{"$f":"COUNTIF(F223:AJ223,\"غياب\")","v":0},{"$f":"COUNTIF(F223:AJ223,\"راحة\")","v":0},{"$f":"COUNTIF(F223:AJ223,\"إجازة\")","v":0},{"$f":"31-AL223","v":31}]
[null,null,null,null,null,null,null,null,null,null,null,null,null,null,null,null,null,null,null,null,null,null,null,null,null,null,null,null,null,null,null,null,null,null,null,null,{"$f":"COUNTIF(F224:AJ224,\"حضور\")","v":0},{"$f":"COUNTIF(F224:AJ224,\"غياب\")","v":0},{"$f":"COUNTIF(F224:AJ224,\"راحة\")","v":0},{"$f":"COUNTIF(F224:AJ224,\"إجازة\")","v":0},{"$f":"31-AL224","v":31}]
[null,null,null,null,null,null,null,null,null,null,null,null,null,null,null,null,null,null,null,null,null,null,null,null,null,null,null,null,null,null,null,null,null,null,null,null,{"$f":"COUNTIF(F225:AJ225,\"حضور\")","v":0},{"$f":"COUNTIF(F225:AJ225,\"غياب\")","v":0},{"$f":"COUNTIF(F225:AJ225,\"راحة\")","v":0},{"$f":"COUNTIF(F225:AJ225,\"إجازة\")","v":0},{"$f":"31-AL225","v":31}]
[null,null,null,null,null,null,null,null,null,null,null,null,null,null,null,null,null,null,null,null,null,null,null,null,null,null,null,null,null,null,null,null,null,null,null,null,{"$f":"COUNTIF(F226:AJ226,\"حضور\")","v":0},{"$f":"COUNTIF(F226:AJ226,\"غياب\")","v":0},{"$f":"COUNTIF(F226:AJ226,\"راحة\")","v":0},{"$f":"COUNTIF(F226:AJ226,\"إجازة\")","v":0},{"$f":"31-AL226","v":31}]
[null,null,null,null,null,null,null,null,null,null,null,null,null,null,null,null,null,null,null,null,null,null,null,null,null,null,null,null,null,null,null,null,null,null,null,null,{"$f":"COUNTIF(F227:AJ227,\"حضور\")","v":0},{"$f":"COUNTIF(F227:AJ227,\"غياب\")","v":0},{"$f":"COUNTIF(F227:AJ227,\"راحة\")","v":0},{"$f":"COUNTIF(F227:AJ227,\"إجازة\")","v":0},{"$f":"31-AL227","v":31}]
[null,null,null,null,null,null,null,null,null,null,null,null,null,null,null,null,null,null,null,null,null,null,null,null,null,null,null,null,null,null,null,null,null,null,null,null,{"$f":"COUNTIF(F228:AJ228,\"حضور\")","v":0},{"$f":"COUNTIF(F228:AJ228,\"غياب\")","v":0},{"$f":"COUNTIF(F228:AJ228,\"راحة\")","v":0},{"$f":"COUNTIF(F228:AJ228,\"إجازة\")","v":0},{"$f":"31-AL228","v":31}]
[null,null,null,null,null,null,null,null,null,null,null,null,null,null,null,null,null,null,null,null,null,null,null,null,null,null,null,null,null,null,null,null,null,null,null,null,{"$f":"COUNTIF(F229:AJ229,\"حضور\")","v":0},{"$f":"COUNTIF(F229:AJ229,\"غياب\")","v":0},{"$f":"COUNTIF(F229:AJ229,\"راحة\")","v":0},{"$f":"COUNTIF(F229:AJ229,\"إجازة\")","v":0},{"$f":"31-AL229","v":31}]
[null,null,null,null,null,null,null,null,null,null,null,null,null,null,null,null,null,null,null,null,null,null,null,null,null,null,null,null,null,null,null,null,null,null,null,null,{"$f":"COUNTIF(F230:AJ230,\"حضور\")","v":0},{"$f":"COUNTIF(F230:AJ230,\"غياب\")","v":0},{"$f":"COUNTIF(F230:AJ230,\"راحة\")","v":0},{"$f":"COUNTIF(F230:AJ230,\"إجازة\")","v":0},{"$f":"31-AL230","v":31}]
[null,null,null,null,null,null,null,null,null,null,null,null,null,null,null,null,null,null,null,null,null,null,null,null,null,null,null,null,null,null,null,null,null,null,null,null,{"$f":"COUNTIF(F231:AJ231,\"حضور\")","v":0},{"$f":"COUNTIF(F231:AJ231,\"غياب\")","v":0},{"$f":"COUNTIF(F231:AJ231,\"راحة\")","v":0},{"$f":"COUNTIF(F231:AJ231,\"إجازة\")","v":0},{"$f":"31-AL231","v":31}]
[null,null,null,null,null,null,null,null,null,null,null,null,null,null,null,null,null,null,null,null,null,null,null,null,null,null,null,null,null,null,null,null,null,null,null,null,{"$f":"COUNTIF(F232:AJ232,\"حضور\")","v":0},{"$f":"COUNTIF(F232:AJ232,\"غياب\")","v":0},{"$f":"COUNTIF(F232:AJ232,\"راحة\")","v":0},{"$f":"COUNTIF(F232:AJ232,\"إجازة\")","v":0},{"$f":"31-AL232","v":31}]
[null,null,null,null,null,null,null,null,null,null,null,null,null,null,null,null,null,null,null,null,null,null,null,null,null,null,null,null,null,null,null,null,null,null,null,null,{"$f":"COUNTIF(F233:AJ233,\"حضور\")","v":0},{"$f":"COUNTIF(F233:AJ233,\"غياب\")","v":0},{"$f":"COUNTIF(F233:AJ233,\"راحة\")","v":0},{"$f":"COUNTIF(F233:AJ233,\"إجازة\")","v":0},{"$f":"31-AL233","v":31}]
[null,null,null,null,null,null,null,null,null,null,null,null,null,null,null,null,null,null,null,null,null,null,null,null,null,null,null,null,null,null,null,null,null,null,null,null,{"$f":"COUNTIF(F234:AJ234,\"حضور\")","v":0},{"$f":"COUNTIF(F234:AJ234,\"غياب\")","v":0},{"$f":"COUNTIF(F234:AJ234,\"راحة\")","v":0},{"$f":"COUNTIF(F234:AJ234,\"إجازة\")","v":0},{"$f":"31-AL234","v":31}]
[null,null,null,null,null,null,null,null,null,null,null,null,null,null,null,null,null,null,null,null,null,null,null,null,null,null,null,null,null,null,null,null,null,null,null,null,{"$f":"COUNTIF(F235:AJ235,\"حضور\")","v":0},{"$f":"COUNTIF(F235:AJ235,\"غياب\")","v":0},{"$f":"COUNTIF(F235:AJ235,\"راحة\")","v":0},{"$f":"COUNTIF(F235:AJ235,\"إجازة\")","v":0},{"$f":"31-AL235","v":31}]
[null,null,null,null,null,null,null,null,null,null,null,null,null,null,null,null,null,null,null,null,null,null,null,null,null,null,null,null,null,null,null,null,null,null,null,null,{"$f":"COUNTIF(F236:AJ236,\"حضور\")","v":0},{"$f":"COUNTIF(F236:AJ236,\"غياب\")","v":0},{"$f":"COUNTIF(F236:AJ236,\"راحة\")","v":0},{"$f":"COUNTIF(F236:AJ236,\"إجازة\")","v":0},{"$f":"31-AL236","v":31}]
[null,null,null,null,null,null,null,null,null,null,null,null,null,null,null,null,null,null,null,null,null,null,null,null,null,null,null,null,null,null,null,null,null,null,null,null,{"$f":"COUNTIF(F237:AJ237,\"حضور\")","v":0},{"$f":"COUNTIF(F237:AJ237,\"غياب\")","v":0},{"$f":"COUNTIF(F237:AJ237,\"راحة\")","v":0},{"$f":"COUNTIF(F237:AJ237,\"إجازة\")","v":0},{"$f":"31-AL237","v":31}]
[null,null,null,null,null,null,null,null,null,null,null,null,null,null,null,null,null,null,null,null,null,null,null,null,null,null,null,null,null,null,null,null,null,null,null,null,{"$f":"COUNTIF(F238:AJ238,\"حضور\")","v":0},{"$f":"COUNTIF(F238:AJ238,\"غياب\")","v":0},{"$f":"COUNTIF(F238:AJ238,\"راحة\")","v":0},{"$f":"COUNTIF(F238:AJ238,\"إجازة\")","v":0},{"$f":"31-AL238","v":31}]
[null,null,null,null,null,null,null,null,null,null,null,null,null,null,null,null,null,null,null,null,null,null,null,null,null,null,null,null,null,null,null,null,null,null,null,null,{"$f":"COUNTIF(F239:AJ239,\"حضور\")","v":0},{"$f":"COUNTIF(F239:AJ239,\"غياب\")","v":0},{"$f":"COUNTIF(F239:AJ239,\"راحة\")","v":0},{"$f":"COUNTIF(F239:AJ239,\"إجازة\")","v":0},{"$f":"31-AL239","v":31}]
[null,null,null,null,null,null,null,null,null,null,null,null,null,null,null,null,null,null,null,null,null,null,null,null,null,null,null,null,null,null,null,null,null,null,null,null,{"$f":"COUNTIF(F240:AJ240,\"حضور\")","v":0},{"$f":"COUNTIF(F240:AJ240,\"غياب\")","v":0},{"$f":"COUNTIF(F240:AJ240,\"راحة\")","v":0},{"$f":"COUNTIF(F240:AJ240,\"إجازة\")","v":0},{"$f":"31-AL240","v":31}]
[null,null,null,null,null,null,null,null,null,null,null,null,null,null,null,null,null,null,null,null,null,null,null,null,null,null,null,null,null,null,null,null,null,null,null,null,{"$f":"COUNTIF(F241:AJ241,\"حضور\")","v":0},{"$f":"COUNTIF(F241:AJ241,\"غياب\")","v":0},{"$f":"COUNTIF(F241:AJ241,\"راحة\")","v":0},{"$f":"COUNTIF(F241:AJ241,\"إجازة\")","v":0},{"$f":"31-AL241","v":31}]
[null,null,null,null,null,null,null,null,null,null,null,null,null,null,null,null,null,null,null,null,null,null,null,null,null,null,null,null,null,null,null,null,null,null,null,null,{"$f":"COUNTIF(F242:AJ242,\"حضور\")","v":0},{"$f":"COUNTIF(F242:AJ242,\"غياب\")","v":0},{"$f":"COUNTIF(F242:AJ242,\"راحة\")","v":0},{"$f":"COUNTIF(F242:AJ242,\"إجازة\")","v":0},{"$f":"31-AL242","v":31}]
[null,null,null,null,null,null,null,null,null,null,null,null,null,null,null,null,null,null,null,null,null,null,null,null,null,null,null,null,null,null,null,null,null,null,null,null,{"$f":"COUNTIF(F243:AJ243,\"حضور\")","v":0},{"$f":"COUNTIF(F243:AJ243,\"غياب\")","v":0},{"$f":"COUNTIF(F243:AJ243,\"راحة\")","v":0},{"$f":"COUNTIF(F243:AJ243,\"إجازة\")","v":0},{"$f":"31-AL243","v":31}]
[null,null,null,null,null,null,null,null,null,null,null,null,null,null,null,null,null,null,null,null,null,null,null,null,null,null,null,null,null,null,null,null,null,null,null,null,{"$f":"COUNTIF(F244:AJ244,\"حضور\")","v":0},{"$f":"COUNTIF(F244:AJ244,\"غياب\")","v":0},{"$f":"COUNTIF(F244:AJ244,\"راحة\")","v":0},{"$f":"COUNTIF(F244:AJ244,\"إجازة\")","v":0},{"$f":"31-AL244","v":31}]
[null,null,null,null,null,null,null,null,null,null,null,null,null,null,null,null,null,null,null,null,null,null,null,null,null,null,null,null,null,null,null,null,null,null,null,null,{"$f":"COUNTIF(F245:AJ245,\"حضور\")","v":0},{"$f":"COUNTIF(F245:AJ245,\"غياب\")","v":0},{"$f":"COUNTIF(F245:AJ245,\"راحة\")","v":0},{"$f":"COUNTIF(F245:AJ245,\"إجازة\")","v":0},{"$f":"31-AL245","v":31}]
[null,null,null,null,null,null,null,null,null,null,null,null,null,null,null,null,null,null,null,null,null,null,null,null,null,null,null,null,null,null,null,null,null,null,null,null,{"$f":"COUNTIF(F246:AJ246,\"حضور\")","v":0},{"$f":"COUNTIF(F246:AJ246,\"غياب\")","v":0},{"$f":"COUNTIF(F246:AJ246,\"راحة\")","v":0},{"$f":"COUNTIF(F246:AJ246,\"إجازة\")","v":0},{"$f":"31-AL246","v":31}]
[null,null,null,null,null,null,null,null,null,null,null,null,null,null,null,null,null,null,null,null,null,null,null,null,null,null,null,null,null,null,null,null,null,null,null,null,{"$f":"COUNTIF(F247:AJ247,\"حضور\")","v":0},{"$f":"COUNTIF(F247:AJ247,\"غياب\")","v":0},{"$f":"COUNTIF(F247:AJ247,\"راحة\")","v":0},{"$f":"COUNTIF(F247:AJ247,\"إجازة\")","v":0},{"$f":"31-AL247","v":31}]
[null,null,null,null,null,null,null,null,null,null,null,null,null,null,null,null,null,null,null,null,null,null,null,null,null,null,null,null,null,null,null,null,null,null,null,null,{"$f":"COUNTIF(F248:AJ248,\"حضور\")","v":0},{"$f":"COUNTIF(F248:AJ248,\"غياب\")","v":0},{"$f":"COUNTIF(F248:AJ248,\"راحة\")","v":0},{"$f":"COUNTIF(F248:AJ248,\"إجازة\")","v":0},{"$f":"31-AL248","v":31}]
[null,null,null,null,null,null,null,null,null,null,null,null,null,null,null,null,null,null,null,null,null,null,null,null,null,null,null,null,null,null,null,null,null,null,null,null,{"$f":"COUNTIF(F249:AJ249,\"حضور\")","v":0},{"$f":"COUNTIF(F249:AJ249,\"غياب\")","v":0},{"$f":"COUNTIF(F249:AJ249,\"راحة\")","v":0},{"$f":"COUNTIF(F249:AJ249,\"إجازة\")","v":0},{"$f":"31-AL249","v":31}]
[null,null,null,null,null,null,null,null,null,null,null,null,null,null,null,null,null,null,null,null,null,null,null,null,null,null,null,null,null,null,null,null,null,null,null,null,{"$f":"COUNTIF(F250:AJ250,\"حضور\")","v":0},{"$f":"COUNTIF(F250:AJ250,\"غياب\")","v":0},{"$f":"COUNTIF(F250:AJ250,\"راحة\")","v":0},{"$f":"COUNTIF(F250:AJ250,\"إجازة\")","v":0},{"$f":"31-AL250","v":31}]
[null,null,null,null,null,null,null,null,null,null,null,null,null,null,null,null,null,null,null,null,null,null,null,null,null,null,null,null,null,null,null,null,null,null,null,null,{"$f":"COUNTIF(F251:AJ251,\"حضور\")","v":0},{"$f":"COUNTIF(F251:AJ251,\"غياب\")","v":0},{"$f":"COUNTIF(F251:AJ251,\"راحة\")","v":0},{"$f":"COUNTIF(F251:AJ251,\"إجازة\")","v":0},{"$f":"31-AL251","v":31}]
[null,null,null,null,null,null,null,null,null,null,null,null,null,null,null,null,null,null,null,null,null,null,null,null,null,null,null,null,null,null,null,null,null,null,null,null,{"$f":"COUNTIF(F252:AJ252,\"حضور\")","v":0},{"$f":"COUNTIF(F252:AJ252,\"غياب\")","v":0},{"$f":"COUNTIF(F252:AJ252,\"راحة\")","v":0},{"$f":"COUNTIF(F252:AJ252,\"إجازة\")","v":0},{"$f":"31-AL252","v":31}]
[null,null,null,null,null,null,null,null,null,null,null,null,null,null,null,null,null,null,null,null,null,null,null,null,null,null,null,null,null,null,null,null,null,null,null,null,{"$f":"COUNTIF(F253:AJ253,\"حضور\")","v":0},{"$f":"COUNTIF(F253:AJ253,\"غياب\")","v":0},{"$f":"COUNTIF(F253:AJ253,\"راحة\")","v":0},{"$f":"COUNTIF(F253:AJ253,\"إجازة\")","v":0},{"$f":"31-AL253","v":31}]
[null,null,null,null,null,null,null,null,null,null,null,null,null,null,null,null,null,null,null,null,null,null,null,null,null,null,null,null,null,null,null,null,null,null,null,null,{"$f":"COUNTIF(F254:AJ254,\"حضور\")","v":0},{"$f":"COUNTIF(F254:AJ254,\"غياب\")","v":0},{"$f":"COUNTIF(F254:AJ254,\"راحة\")","v":0},{"$f":"COUNTIF(F254:AJ254,\"إجازة\")","v":0},{"$f":"31-AL254","v":31}]
[null,null,null,null,null,null,null,null,null,null,null,null,null,null,null,null,null,null,null,null,null,null,null,null,null,null,null,null,null,null,null,null,null,null,null,null,{"$f":"COUNTIF(F255:AJ255,\"حضور\")","v":0},{"$f":"COUNTIF(F255:AJ255,\"غياب\")","v":0},{"$f":"COUNTIF(F255:AJ255,\"راحة\")","v":0},{"$f":"COUNTIF(F255:AJ255,\"إجازة\")","v":0},{"$f":"31-AL255","v":31}]
[null,null,null,null,null,null,null,null,null,null,null,null,null,null,null,null,null,null,null,null,null,null,null,null,null,null,null,null,null,null,null,null,null,null,null,null,{"$f":"COUNTIF(F256:AJ256,\"حضور\")","v":0},{"$f":"COUNTIF(F256:AJ256,\"غياب\")","v":0},{"$f":"COUNTIF(F256:AJ256,\"راحة\")","v":0},{"$f":"COUNTIF(F256:AJ256,\"إجازة\")","v":0},{"$f":"31-AL256","v":31}]
[null,null,null,null,null,null,null,null,null,null,null,null,null,null,null,null,null,null,null,null,null,null,null,null,null,null,null,null,null,null,null,null,null,null,null,null,{"$f":"COUNTIF(F257:AJ257,\"حضور\")","v":0},{"$f":"COUNTIF(F257:AJ257,\"غياب\")","v":0},{"$f":"COUNTIF(F257:AJ257,\"راحة\")","v":0},{"$f":"COUNTIF(F257:AJ257,\"إجازة\")","v":0},{"$f":"31-AL257","v":31}]
[null,null,null,null,null,null,null,null,null,null,null,null,null,null,null,null,null,null,null,null,null,null,null,null,null,null,null,null,null,null,null,null,null,null,null,null,{"$f":"COUNTIF(F258:AJ258,\"حضور\")","v":0},{"$f":"COUNTIF(F258:AJ258,\"غياب\")","v":0},{"$f":"COUNTIF(F258:AJ258,\"راحة\")","v":0},{"$f":"COUNTIF(F258:AJ258,\"إجازة\")","v":0},{"$f":"31-AL258","v":31}]
[null,null,null,null,null,null,null,null,null,null,null,null,null,null,null,null,null,null,null,null,null,null,null,null,null,null,null,null,null,null,null,null,null,null,null,null,{"$f":"COUNTIF(F259:AJ259,\"حضور\")","v":0},{"$f":"COUNTIF(F259:AJ259,\"غياب\")","v":0},{"$f":"COUNTIF(F259:AJ259,\"راحة\")","v":0},{"$f":"COUNTIF(F259:AJ259,\"إجازة\")","v":0},{"$f":"31-AL259","v":31}]